Body Name,Body,Service Division Label,Service Division Code,Organisational Unit,Expenditure Category,Expenditure Code,CIPFA detailed expediture type,CIPFA detailed expediture code,Narrative,Date,Transaction number,Net Amount,Capital and Revenue,Supplier Name,Supplier ID
Chorley Borough Council,http://statistics.data.gov.uk/id/local-authority/30UE,Central Support Services,1009,Policy & Performance,Exhibitions & Special Events,40158,Miscellaneous Expenses,5034,Airtime for Chorley Live event,18/12/2014,99720,270.00,Revenue,107 The Bee,51152
Chorley Borough Council,http://statistics.data.gov.uk/id/local-authority/30UE,Homelessness,1075,Housing,Grants To Other Organisations,40127,Grants and Subscriptions,5031,Provision of Accommodation Finding Service with Enhanced Rental Bond Q4 (year 1),05/12/2014,99498,"11,150.00",Revenue,AAAW Ltd,64261
Chorley Borough Council,http://statistics.data.gov.uk/id/local-authority/30UE,Unapportionable Central OHeads,1009,Policy & Performance,Exhibitions & Special Events,40158,Miscellaneous Expenses,5034,Additional 200 children`s gifts for Santa,23/12/2014,99887,"1,050.00",Revenue,Abbey Distributors,67669
Chorley Borough Council,http://statistics.data.gov.uk/id/local-authority/30UE,Capital,Capital,Housing,Grants,3002,Capital Expenditure,Capital,839 63 Railway Road,03/12/2014,99393,"3,406.00",Capital,Accessible Bathroom Solutions Ltd,58149
Chorley Borough Council,http://statistics.data.gov.uk/id/local-authority/30UE,Capital,Capital,Housing,Grants,3002,Capital Expenditure,Capital,INV 864 19 Pikestone,23/12/2014,99929,"3,575.00",Capital,Accessible Bathroom Solutions Ltd,58149
Chorley Borough Council,http://statistics.data.gov.uk/id/local-authority/30UE,Unapportionable Central OHeads,1009,Governance,Exhibitions & Special Events,40158,Miscellaneous Expenses,5034,Bar fees for October and November 2014. Friday 3rd Oct - Chorley Live Saturday 5th Oct - Chorley Live,23/12/2014,99877,130.00,Revenue,Ace Bars Ltd,54338
Chorley Borough Council,http://statistics.data.gov.uk/id/local-authority/30UE,Democratic Represent and  Mgnt,1007,Governance,Other Fees,40212,Miscellaneous Expenses,5034,"Sat 11th Oct - Northern Link Sat 8th Nov - Festival of RemembranceSat 15th Nov - Northern Link",23/12/2014,99877,195.00,Revenue,Ace Bars Ltd,54338
Chorley Borough Council,http://statistics.data.gov.uk/id/local-authority/30UE,Democratic Represent and  Mgnt,1007,Governance,Mayoral Hospitality,40123,Expenses,5030,Fri 14th Nov - Mayor`s Charity Soul Night,23/12/2014,99877,65.00,Revenue,Ace Bars Ltd,54338
Chorley Borough Council,http://statistics.data.gov.uk/id/local-authority/30UE,Flood Defence & Land Drainage,1046,Health Environment & Neighbourhoods,Rent/Hire Of Premises,20017,Premises Rents,5007,Hire of clayton green for DSC sessions August 8th to Sept 12th,10/12/2014,99502,696.60,Revenue,Active Nation UK Ltd,17144
Chorley Borough Council,http://statistics.data.gov.uk/id/local-authority/30UE,Flood Defence & Land Drainage,1046,Health Environment & Neighbourhoods,Rent/Hire Of Premises,20017,Premises Rents,5007,Hire of clayton green for DSC sessions Sept 19th to Nov 28th (11 sessions@135),10/12/2014,99502,"1,485.00",Revenue,Active Nation UK Ltd,17144
Chorley Borough Council,http://statistics.data.gov.uk/id/local-authority/30UE,Flood Defence & Land Drainage,1046,Health Environment & Neighbourhoods,Rent/Hire Of Premises,20017,Premises Rents,5007,Hire of main hall and practice hall on Saturday night for DSC in August,18/12/2014,99803,252.00,Revenue,Active Nation UK Ltd,17144
Chorley Borough Council,http://statistics.data.gov.uk/id/local-authority/30UE,Flood Defence & Land Drainage,1046,Health Environment & Neighbourhoods,Rent/Hire Of Premises,20017,Premises Rents,5007,"Hire of practise hall, main hall and monthly swim in October, November and December (6 sessions)",18/12/2014,99803,636.00,Revenue,Active Nation UK Ltd,17144
Chorley Borough Council,http://statistics.data.gov.uk/id/local-authority/30UE,Recreation & Sport,1037,Streetscene & Leisure Contracts,External Contractor - Trust or Charity,50008,Private Contractors,5042,"Amended Active Nation Monthly Management Fee For the period May 2014 - March 2015Monthly Fee to be invoiced ",18/12/2014,99822,"32,556.10",Revenue,Active Nation UK Ltd,17144
Chorley Borough Council,http://statistics.data.gov.uk/id/local-authority/30UE,Open Spaces,1038,Streetscene & Leisure Contracts,Other Contributions,40145,Grants and Subscriptions,5031,Clayton-le-Woods Heritage Garden Construction. Back Lane Reservouir,10/12/2014,99681,"2,742.00",Revenue,Adlington Dry Stone Walling,63372
Chorley Borough Council,http://statistics.data.gov.uk/id/local-authority/30UE,Democratic Represent and  Mgnt,1007,Streetscene & Leisure Contracts,Other Contributions,40145,Grants and Subscriptions,5031,Labour,10/12/2014,99681,258.00,Revenue,Adlington Dry Stone Walling,63372
Chorley Borough Council,http://statistics.data.gov.uk/id/local-authority/30UE,Flood Defence & Land Drainage,1046,Streetscene & Leisure Contracts,Miscellaneous Expenses,40200,Miscellaneous Expenses,5034,"Repairs to bridge 1, 4 and 5 along the length of Carr Brook as per quotations and spec agreed.",18/12/2014,99839,"1,380.00",Revenue,Adlington Dry Stone Walling,63372
Chorley Borough Council,http://statistics.data.gov.uk/id/local-authority/30UE,Flood Defence & Land Drainage,1046,Streetscene & Leisure Contracts,Miscellaneous Expenses,40200,Miscellaneous Expenses,5034,Materials,18/12/2014,99839,"1,800.00",Revenue,Adlington Dry Stone Walling,63372
Chorley Borough Council,http://statistics.data.gov.uk/id/local-authority/30UE,Business Support,1095,Governance,Burglar Alarms & Security Systems,20075,Fixtures and Fittings,5010,"Fire alarms, intruder alarms, access system and monitoring work at Gillibrand Street.",05/12/2014,99401,310.00,Revenue,ADT Fire & Security,16645
Chorley Borough Council,http://statistics.data.gov.uk/id/local-authority/30UE,Central Support Services,1009,Governance,Burglar Alarms & Security Systems,20075,Fixtures and Fittings,5010,"Fire alarms, intruder alarms, access system and monitoring work at the Civic Offices, Union Street.",05/12/2014,99402,263.00,Revenue,ADT Fire & Security,16645
Chorley Borough Council,http://statistics.data.gov.uk/id/local-authority/30UE,Unapportionable Central OHeads,1009,Governance,Burglar Alarms & Security Systems,20075,Fixtures and Fittings,5010,"Fire alarms, intruder alarms, access system and monitoring work at the Civic Offices, Union Street.",05/12/2014,99403,365.00,Revenue,ADT Fire & Security,16645
Chorley Borough Council,http://statistics.data.gov.uk/id/local-authority/30UE,Unapportionable Central OHeads,1009,Transformation Management,Planned Maintenance,20006,Repairs Maintenance & Alts,5005,Redcare + Intruder alarm monitoring at Tatton CC for 29/9/14-30/9/15.,10/12/2014,99478,901.70,Revenue,ADT Fire & Security,16645
Chorley Borough Council,http://statistics.data.gov.uk/id/local-authority/30UE,Service Management & Support,1009,Streetscene & Leisure Contracts,Vehicle Maintenance,30045,Direct Transport Costs,5016,Supply 2 x sets of filters as per your quote 2009521 to be delivered to Bengal St depot to include carriage,18/12/2014,99810,360.92,Revenue,Aebi Schmidt UK Ltd,17287
Chorley Borough Council,http://statistics.data.gov.uk/id/local-authority/30UE,Unapportionable Central OHeads,1009,Governance,Refreshments,40036,Catering,5024,fair trade provisions for committee rooms,10/12/2014,99657,307.88,Revenue,allianceonline,59490
Chorley Borough Council,http://statistics.data.gov.uk/id/local-authority/30UE,Unapportionable Central OHeads,1009,"Customer, ICT & Transactional",Bank Charges,40151,Miscellaneous Expenses,5034,Additional Account Fees,10/12/2014,99491,10.00,Revenue,Allpay Net Ltd,17242
Chorley Borough Council,http://statistics.data.gov.uk/id/local-authority/30UE,Unapportionable Central OHeads,1009,"Customer, ICT & Transactional",Bank Charges,40151,Miscellaneous Expenses,5034,Post Office Transactions,10/12/2014,99491,"1,153.43",Revenue,Allpay Net Ltd,17242
Chorley Borough Council,http://statistics.data.gov.uk/id/local-authority/30UE,Central Support Services,1009,"Customer, ICT & Transactional",Bank Charges,40151,Miscellaneous Expenses,5034,PayPoint Transactions,10/12/2014,99491,714.93,Revenue,Allpay Net Ltd,17242
Chorley Borough Council,http://statistics.data.gov.uk/id/local-authority/30UE,Unapportionable Central OHeads,1009,"Customer, ICT & Transactional",Bank Charges,40151,Miscellaneous Expenses,5034,Webconnect Monthly Charges,10/12/2014,99491,33.97,Revenue,Allpay Net Ltd,17242
Chorley Borough Council,http://statistics.data.gov.uk/id/local-authority/30UE,Corporate Management,1008,Shared Service Arrangement,Car Leasing Payment,14100,Direct Employee Expenses,5001,Car Lease,05/12/2014,98997,284.89,Revenue,Alphabet (Uk) Fleet Management Ltd,16651
Chorley Borough Council,http://statistics.data.gov.uk/id/local-authority/30UE,Corporate Management,1008,Shared Service Arrangement,Car Leasing Payment,14100,Direct Employee Expenses,5001,Car Lease,05/12/2014,98997,24.80,Revenue,Alphabet (Uk) Fleet Management Ltd,16651
Chorley Borough Council,http://statistics.data.gov.uk/id/local-authority/30UE,Unapportionable Central OHeads,1009,Shared Service Arrangement,Car Leasing Payment,14100,Direct Employee Expenses,5001,Car Lease,05/12/2014,98997,203.52,Revenue,Alphabet (Uk) Fleet Management Ltd,16651
Chorley Borough Council,http://statistics.data.gov.uk/id/local-authority/30UE,Unapportionable Central OHeads,1009,Shared Service Arrangement,Car Leasing Payment,14100,Direct Employee Expenses,5001,Car Lease,05/12/2014,98997,17.25,Revenue,Alphabet (Uk) Fleet Management Ltd,16651
Chorley Borough Council,http://statistics.data.gov.uk/id/local-authority/30UE,Community Development,1097,Shared Service Arrangement,Car Leasing Payment,14100,Direct Employee Expenses,5001,Car Lease,05/12/2014,98997,46.08,Revenue,Alphabet (Uk) Fleet Management Ltd,16651
Chorley Borough Council,http://statistics.data.gov.uk/id/local-authority/30UE,Community Development,1097,Shared Service Arrangement,Car Leasing Payment,14100,Direct Employee Expenses,5001,Car Lease,05/12/2014,98997,4.09,Revenue,Alphabet (Uk) Fleet Management Ltd,16651
Chorley Borough Council,http://statistics.data.gov.uk/id/local-authority/30UE,Central Support Services,1009,Shared Service Arrangement,Car Leasing Payment,14100,Direct Employee Expenses,5001,Car Lease,05/12/2014,98997,171.36,Revenue,Alphabet (Uk) Fleet Management Ltd,16651
Chorley Borough Council,http://statistics.data.gov.uk/id/local-authority/30UE,Unapportionable Central OHeads,1009,Shared Service Arrangement,Car Leasing Payment,14100,Direct Employee Expenses,5001,Car Lease,05/12/2014,98997,15.77,Revenue,Alphabet (Uk) Fleet Management Ltd,16651
Chorley Borough Council,http://statistics.data.gov.uk/id/local-authority/30UE,Democratic Represent and  Mgnt,1007,Shared Service Arrangement,Car Leasing Payment,14100,Direct Employee Expenses,5001,Car Lease,05/12/2014,98997,340.07,Revenue,Alphabet (Uk) Fleet Management Ltd,16651
Chorley Borough Council,http://statistics.data.gov.uk/id/local-authority/30UE,Democratic Represent and  Mgnt,1007,Shared Service Arrangement,Car Leasing Payment,14100,Direct Employee Expenses,5001,Car Lease,05/12/2014,98997,31.59,Revenue,Alphabet (Uk) Fleet Management Ltd,16651
Chorley Borough Council,http://statistics.data.gov.uk/id/local-authority/30UE,Democratic Represent and  Mgnt,1007,Shared Service Arrangement,Transport Operating Leases,30029,Contrct Hire & Operating Lease,5018,Car Lease,10/12/2014,99622,329.10,Revenue,Alphabet (Uk) Fleet Management Ltd,16651
Chorley Borough Council,http://statistics.data.gov.uk/id/local-authority/30UE,Democratic Represent and  Mgnt,1007,Shared Service Arrangement,Transport Operating Leases,30029,Contrct Hire & Operating Lease,5018,Car Lease,10/12/2014,99622,30.57,Revenue,Alphabet (Uk) Fleet Management Ltd,16651
Chorley Borough Council,http://statistics.data.gov.uk/id/local-authority/30UE,Corporate Management,1008,Shared Service Arrangement,Car Leasing Payment,14100,Direct Employee Expenses,5001,Car Lease,10/12/2014,99622,275.70,Revenue,Alphabet (Uk) Fleet Management Ltd,16651
Chorley Borough Council,http://statistics.data.gov.uk/id/local-authority/30UE,Corporate Management,1008,Shared Service Arrangement,Car Leasing Payment,14100,Direct Employee Expenses,5001,Car Lease,10/12/2014,99622,24.00,Revenue,Alphabet (Uk) Fleet Management Ltd,16651
Chorley Borough Council,http://statistics.data.gov.uk/id/local-authority/30UE,Central Support Services,1009,Shared Service Arrangement,Car Leasing Payment,14100,Direct Employee Expenses,5001,Car Lease,10/12/2014,99622,244.80,Revenue,Alphabet (Uk) Fleet Management Ltd,16651
Chorley Borough Council,http://statistics.data.gov.uk/id/local-authority/30UE,Unapportionable Central OHeads,1009,Shared Service Arrangement,Car Leasing Payment,14100,Direct Employee Expenses,5001,Car Lease,10/12/2014,99622,22.53,Revenue,Alphabet (Uk) Fleet Management Ltd,16651
Chorley Borough Council,http://statistics.data.gov.uk/id/local-authority/30UE,Central Support Services,1009,Shared Service Arrangement,Car Leasing Payment,14100,Direct Employee Expenses,5001,Car Lease,10/12/2014,99622,190.80,Revenue,Alphabet (Uk) Fleet Management Ltd,16651
Chorley Borough Council,http://statistics.data.gov.uk/id/local-authority/30UE,Unapportionable Central OHeads,1009,Shared Service Arrangement,Car Leasing Payment,14100,Direct Employee Expenses,5001,Car Lease,10/12/2014,99622,16.17,Revenue,Alphabet (Uk) Fleet Management Ltd,16651
Chorley Borough Council,http://statistics.data.gov.uk/id/local-authority/30UE,Democratic Represent and  Mgnt,1007,Shared Service Arrangement,Car Leasing Payment,14100,Direct Employee Expenses,5001,Car Lease,10/12/2014,99669,"3,607.73",Revenue,Alphabet (Uk) Fleet Management Ltd,16651
Chorley Borough Council,http://statistics.data.gov.uk/id/local-authority/30UE,Democratic Represent and  Mgnt,1007,Shared Service Arrangement,Car Leasing Payment,14100,Direct Employee Expenses,5001,Car Lease,10/12/2014,99669,305.20,Revenue,Alphabet (Uk) Fleet Management Ltd,16651
Chorley Borough Council,http://statistics.data.gov.uk/id/local-authority/30UE,Unapportionable Central OHeads,1009,Governance,Cleaning Materials,40019,"Equipment, Furniture & Materia",5023,Cleaning materials for town hall and union street.,18/12/2014,99684,568.40,Revenue,Amtoll Ltd,21738
Chorley Borough Council,http://statistics.data.gov.uk/id/local-authority/30UE,Economic Development,1096,Economic Development,Grants To Other Organisations,40127,Grants and Subscriptions,5031,shop front,18/12/2014,98347,465.00,Revenue,NAME REDACTED,67157
Chorley Borough Council,http://statistics.data.gov.uk/id/local-authority/30UE,Corporate Management,1008,Health Environment & Neighbourhoods,Refunds,40220,Miscellaneous Expenses,5034,Refund,12/12/2014,99196,265.83,Revenue,NAME REDACTED,67672
Chorley Borough Council,http://statistics.data.gov.uk/id/local-authority/30UE,Central Support Services,1009,"Customer, ICT & Transactional",Computer - Support Services,40111,Communication and Computing,5028,"Citrix support contract - year 5 of 5. Contract ref ANS/4483/529, covering the period 01/11/14 to 31/10/15",03/12/2014,99487,"3,000.00",Revenue,ANS Group,22502
Chorley Borough Council,http://statistics.data.gov.uk/id/local-authority/30UE,Service Management & Support,1009,Streetscene & Leisure Contracts,Supplies-Grounds Maintenance,40025,"Equipment, Furniture & Materia",5023,Supply 40 x 5litre of trustee amenity weedkiller. Delivered to Bengal St depot,03/12/2014,99255,920.00,Revenue,AP Broom Landscapes,67257
Chorley Borough Council,http://statistics.data.gov.uk/id/local-authority/30UE,Service Management & Support,1009,Streetscene & Leisure Contracts,Supplies-Grounds Maintenance,40025,"Equipment, Furniture & Materia",5023,Supply 2 x 1litre tub of Icade to be delivered to Bengal St depot,03/12/2014,99255,88.00,Revenue,AP Broom Landscapes,67257
Chorley Borough Council,http://statistics.data.gov.uk/id/local-authority/30UE,Building Control,1090,Shared Service Arrangement,Car Leasing Payment,14100,Direct Employee Expenses,5001,Car Lease,05/12/2014,99535,589.43,Revenue,Arnold Clark Finance Ltd,20685
Chorley Borough Council,http://statistics.data.gov.uk/id/local-authority/30UE,Building Control,1090,Shared Service Arrangement,Car Leasing Payment,14100,Direct Employee Expenses,5001,Car Lease,05/12/2014,99535,50.45,Revenue,Arnold Clark Finance Ltd,20685
Chorley Borough Council,http://statistics.data.gov.uk/id/local-authority/30UE,Corporate Management,1008,Shared Service Arrangement,Car Leasing Payment,14100,Direct Employee Expenses,5001,Car Lease,18/12/2014,99854,"2,556.00",Revenue,Arnold Clark Finance Ltd,20685
Chorley Borough Council,http://statistics.data.gov.uk/id/local-authority/30UE,Corporate Management,1008,Shared Service Arrangement,Car Leasing Payment,14100,Direct Employee Expenses,5001,Car Lease,18/12/2014,99854,213.12,Revenue,Arnold Clark Finance Ltd,20685
Chorley Borough Council,http://statistics.data.gov.uk/id/local-authority/30UE,Central Support Services,1009,Shared Service Arrangement,Car Leasing Payment,14100,Direct Employee Expenses,5001,Car Lease,18/12/2014,99855,"3,120.00",Revenue,Arnold Clark Finance Ltd,20685
Chorley Borough Council,http://statistics.data.gov.uk/id/local-authority/30UE,Unapportionable Central OHeads,1009,Shared Service Arrangement,Car Leasing Payment,14100,Direct Employee Expenses,5001,Car Lease,18/12/2014,99855,264.07,Revenue,Arnold Clark Finance Ltd,20685
Chorley Borough Council,http://statistics.data.gov.uk/id/local-authority/30UE,Corporate Management,1008,Shared Service Arrangement,Car Leasing Payment,14100,Direct Employee Expenses,5001,Car Lease,18/12/2014,99856,"4,176.00",Revenue,Arnold Clark Finance Ltd,20685
Chorley Borough Council,http://statistics.data.gov.uk/id/local-authority/30UE,Corporate Management,1008,Shared Service Arrangement,Car Leasing Payment,14100,Direct Employee Expenses,5001,Car Lease,18/12/2014,99856,362.89,Revenue,Arnold Clark Finance Ltd,20685
Chorley Borough Council,http://statistics.data.gov.uk/id/local-authority/30UE,Community Development,1097,Policy & Performance,Core Funding Grants,40133,Grants and Subscriptions,5031,small community funding,18/12/2014,99828,250.00,Revenue,Asltey & Buckshaw Juniors Football Club,55922
Chorley Borough Council,http://statistics.data.gov.uk/id/local-authority/30UE,Regulatory Services,1048,Health Environment & Neighbourhoods,Taxi Testing & Vehicle Safety Report,40234,Services,5027,Taxi Tests,05/12/2014,99395,124.95,Revenue,Autocentre LTD,21651
Chorley Borough Council,http://statistics.data.gov.uk/id/local-authority/30UE,Corporate Management,1008,Health Environment & Neighbourhoods,Taxi Testing & Vehicle Safety Report,40234,Services,5027,MOT,05/12/2014,99395,822.75,Revenue,Autocentre LTD,21651
Chorley Borough Council,http://statistics.data.gov.uk/id/local-authority/30UE,Corporate Management,1008,Health Environment & Neighbourhoods,Taxi Testing & Vehicle Safety Report,40234,Services,5027,Taxi Tests,03/12/2014,99493,91.63,Revenue,Autocentre LTD,21651
Chorley Borough Council,http://statistics.data.gov.uk/id/local-authority/30UE,Regulatory Services,1048,Health Environment & Neighbourhoods,Taxi Testing & Vehicle Safety Report,40234,Services,5027,MOT`s,03/12/2014,99493,603.35,Revenue,Autocentre LTD,21651
Chorley Borough Council,http://statistics.data.gov.uk/id/local-authority/30UE,Regulatory Services,1048,Health Environment & Neighbourhoods,Taxi Testing & Vehicle Safety Report,40234,Services,5027,Taxi Test,10/12/2014,99528,158.27,Revenue,Autocentre LTD,21651
Chorley Borough Council,http://statistics.data.gov.uk/id/local-authority/30UE,Regulatory Services,1048,Health Environment & Neighbourhoods,Taxi Testing & Vehicle Safety Report,40234,Services,5027,MOT`s,10/12/2014,99528,"1,042.15",Revenue,Autocentre LTD,21651
Chorley Borough Council,http://statistics.data.gov.uk/id/local-authority/30UE,Service Management & Support,1009,Streetscene & Leisure Contracts,Registered Plant - Maintenance,40247,"Equipment, Furniture & Materia",5023,Carryout repairs to hydraulic drive box`s on John Deere 900 as requested as per Pro Forma No 169583,03/12/2014,99426,"1,582.09",Revenue,Balmers Garden Machinery,17075
Chorley Borough Council,http://statistics.data.gov.uk/id/local-authority/30UE,Service Management & Support,1009,Streetscene & Leisure Contracts,Hire Of Transport,30028,Contrct Hire & Operating Lease,5018,Hire of LT324 as per invoice number 104733 supplied,18/12/2014,99767,250.00,Revenue,Balmers Garden Machinery,17075
Chorley Borough Council,http://statistics.data.gov.uk/id/local-authority/30UE,Flood Defence & Land Drainage,1046,Health Environment & Neighbourhoods,Tools & Equipment - Maintenance,40005,"Equipment, Furniture & Materia",5023,Repair and reinstallation of Unit 4 camera,18/12/2014,99761,878.25,Revenue,Baydale Control Systems,21154
Chorley Borough Council,http://statistics.data.gov.uk/id/local-authority/30UE,Central Support Services,1009,"Customer, ICT & Transactional",Consultants` Fees,40077,Services,5027,"Support Service as agreed with Customer, Transactional and ICT services. 3 days a week",05/12/2014,99557,"1,800.00",Revenue,REDACTED PERSONAL DATA,22238
Chorley Borough Council,http://statistics.data.gov.uk/id/local-authority/30UE,Economic Development,1096,Economic Development,Publicity - Advertising,40157,Miscellaneous Expenses,5034,December issue as arranged ,18/12/2014,99814,400.00,Revenue,Beau Business Media,47620
Chorley Borough Council,http://statistics.data.gov.uk/id/local-authority/30UE,Homelessness,1075,Housing,Laundry,40042,"Clothing, Uniforms and Laundry",5025,"Linen Service at Cotswold Supported Housing, Cotswold Road, Chorley, Lancashire, PR7 3HW. This for the period April 14 ",03/12/2014,99386,267.83,Revenue,Berendsen UK Ltd,20799
Chorley Borough Council,http://statistics.data.gov.uk/id/local-authority/30UE,Homelessness,1075,HR & Org. Development,Severance Pay,16101,Indirect Employee Expenses,5002,Adhoc Charges ,05/12/2014,99537,"3,827.82",Revenue,Blackpool Borough Council,16518
Chorley Borough Council,http://statistics.data.gov.uk/id/local-authority/30UE,Economic Development,1096,Economic Development,Grants To Other Organisations,40127,Grants and Subscriptions,5031,Shop floor grant,23/12/2014,99909,"3,000.00",Revenue,NAME REDACTED,66513
Chorley Borough Council,http://statistics.data.gov.uk/id/local-authority/30UE,Central Support Services,1009,"Customer, ICT & Transactional",IT Software - Annual Licences,40101,Communication and Computing,5028,"Digital Dataset - 1:50k Radon Potential Dataset, ESRI.shp format (1 seat, 3 year licence)IPR Ref:  176-13DY",18/12/2014,98574,321.00,Revenue,British Geological Survey,21160
Chorley Borough Council,http://statistics.data.gov.uk/id/local-authority/30UE,Service Management & Support,1009,Streetscene & Leisure Contracts,Supplies-Grounds Maintenance,40025,"Equipment, Furniture & Materia",5023,"Please supply 20 tonnes of aggregate, 20mm to dust, delivered to Bengal Street Depot, Chorley. Price of 13.80 per tonne.",23/12/2014,99881,276.00,Revenue,Burt Wesley & Sons ltd,67887
Chorley Borough Council,http://statistics.data.gov.uk/id/local-authority/30UE,Economic Development,1096,Economic Development,Jetting Of Sewers/Drains,20050,Grounds Maintenance Costs,5013,2 more visits to clear out: 17/11/2014 - Jetter and CCTV unit 2 hrs at 120.00,05/12/2014,99508,240.00,Revenue,C J Lyon,16579
Chorley Borough Council,http://statistics.data.gov.uk/id/local-authority/30UE,Economic Development,1096,Economic Development,Jetting Of Sewers/Drains,20050,Grounds Maintenance Costs,5013,19/11/2014 - jetter and CCTV unit 2 hrs at 120.00,05/12/2014,99508,240.00,Revenue,C J Lyon,16579
Chorley Borough Council,http://statistics.data.gov.uk/id/local-authority/30UE,Unapportionable Central OHeads,1009,Streetscene & Leisure Contracts,Refuse Collection,20037,Cleaning and Domestic Supplies,5012,Carryout emptying of interceptor and gullies at Bengal St depot at price quoted,10/12/2014,99521,300.00,Revenue,C J Lyon,16579
Chorley Borough Council,http://statistics.data.gov.uk/id/local-authority/30UE,Central Support Services,1009,Streetscene & Leisure Contracts,Refuse Collection,20037,Cleaning and Domestic Supplies,5012,Carryout emptying of interceptor and gullies at Bengal St depot at price quoted,23/12/2014,99849,300.00,Revenue,C J Lyon,16579
Chorley Borough Council,http://statistics.data.gov.uk/id/local-authority/30UE,Central Support Services,1009,Streetscene & Leisure Contracts,Refuse Collection,20037,Cleaning and Domestic Supplies,5012,Carryout emptying of interceptor and gullies at Bengal St depot at price quoted,23/12/2014,99896,300.00,Revenue,C J Lyon,16579
Chorley Borough Council,http://statistics.data.gov.uk/id/local-authority/30UE,Service Management & Support,1009,Streetscene & Leisure Contracts,External Contractor,40198,Miscellaneous Expenses,5034,"Carryout jetting as requested at various areas Gillibrand Ponds 2hrs Chorley Cemetery 2hrs Gillibrand Ponds 2hrs",23/12/2014,99911,600.00,Revenue,C J Lyon,16579
Chorley Borough Council,http://statistics.data.gov.uk/id/local-authority/30UE,Service Management & Support,1009,Streetscene & Leisure Contracts,Vehicle Maintenance,30045,Direct Transport Costs,5016,Carryout service and pre M O T inspection on DK56 WO take for annual test,10/12/2014,99633,"2,093.91",Revenue,C P Davidson & Sons Ltd,21093
Chorley Borough Council,http://statistics.data.gov.uk/id/local-authority/30UE,Service Management & Support,1009,Streetscene & Leisure Contracts,Vehicle Maintenance,30045,Direct Transport Costs,5016,Carryout service and pre M O T inspection on DK56 WO take for annual test,10/12/2014,99633,126.00,Revenue,C P Davidson & Sons Ltd,21093
Chorley Borough Council,http://statistics.data.gov.uk/id/local-authority/30UE,Unapportionable Central OHeads,1009,"Customer, ICT & Transactional",Emergency Call Out System,40096,Communication and Computing,5028,Out of Hours Standing Charge November 2014,10/12/2014,99629,587.60,Revenue,CallCare Ltd,20257
Chorley Borough Council,http://statistics.data.gov.uk/id/local-authority/30UE,Unapportionable Central OHeads,1009,"Customer, ICT & Transactional",Photocopier Charges,40047,"Printing, Stationery & General",5026,uniflow copier,03/12/2014,98041,"1,114.75",Revenue,Canon (UK) Ltd,17492
Chorley Borough Council,http://statistics.data.gov.uk/id/local-authority/30UE,Central Support Services,1009,"Customer, ICT & Transactional",Photocopier Charges,40047,"Printing, Stationery & General",5026,Printer Contracts,03/12/2014,98235,"3,596.96",Revenue,Canon (UK) Ltd,17492
Chorley Borough Council,http://statistics.data.gov.uk/id/local-authority/30UE,Unapportionable Central OHeads,1009,"Customer, ICT & Transactional",Photocopier Charges,40047,"Printing, Stationery & General",5026,Printer rental,18/12/2014,99862,"1,281.21",Revenue,Canon (UK) Ltd,17492
Chorley Borough Council,http://statistics.data.gov.uk/id/local-authority/30UE,Unapportionable Central OHeads,1009,"Customer, ICT & Transactional",Agency Staff,13000,Direct Employee Expenses,5001,"Capacity grid, benefits processing",23/12/2014,99752,"3,452.40",Revenue,Capacity Grid,67989
Chorley Borough Council,http://statistics.data.gov.uk/id/local-authority/30UE,Service Management & Support,1009,Streetscene & Leisure Contracts,Supplies-Grounds Maintenance,40025,"Equipment, Furniture & Materia",5023,Supply 3.5 tonne of 10mm wearing coarse to be collected by Chorley Council,12/12/2014,99711,432.86,Revenue,CEMEX UK Materials Ltd,16849
Chorley Borough Council,http://statistics.data.gov.uk/id/local-authority/30UE,Capital,Capital,Streetscene & Leisure Contracts,Main Contractor,3007,Capital Expenditure,Capital,"Landscaping, Bitmac surfacing and installation of ball court fencing with assoc line marking at Jubilee Recreation Ground",03/12/2014,99236,"25,869.99",Capital,CH Civils Ltd,22541
Chorley Borough Council,http://statistics.data.gov.uk/id/local-authority/30UE,Capital,Capital,Streetscene & Leisure Contracts,Main Contractor,3007,Capital Expenditure,Capital,"Jubilee Recreation Ground - Extra base tarmac and associated ground prep, bowtop fencing and self close gate",12/12/2014,99245,"9,972.22",Capital,CH Civils Ltd,22541
Chorley Borough Council,http://statistics.data.gov.uk/id/local-authority/30UE,Regulatory Services,1048,Health Environment & Neighbourhoods,Taxi Testing & Vehicle Safety Report,40234,Services,5027,mots,18/12/2014,99792,438.80,Revenue,Chorley Autocare Ltd,17110
Chorley Borough Council,http://statistics.data.gov.uk/id/local-authority/30UE,Corporate Management,1008,Health Environment & Neighbourhoods,Taxi Testing & Vehicle Safety Report,40234,Services,5027,taxi test,18/12/2014,99792,68.40,Revenue,Chorley Autocare Ltd,17110
Chorley Borough Council,http://statistics.data.gov.uk/id/local-authority/30UE,Community Development,1097,Policy & Performance,Core Funding Grants,40133,Grants and Subscriptions,5031,Small Communiti,18/12/2014,99788,489.00,Revenue,Chorley FM Ltd,50669
Chorley Borough Council,http://statistics.data.gov.uk/id/local-authority/30UE,Economic Development,1096,Economic Development,Grants To Other Organisations,40127,Grants and Subscriptions,5031,Shop front - final payment,23/12/2014,99901,"2,025.00",Revenue,Chorley Roofline,66210
Chorley Borough Council,http://statistics.data.gov.uk/id/local-authority/30UE,Flood Defence & Land Drainage,1046,Health Environment & Neighbourhoods,Children's Activities,40188,Miscellaneous Expenses,5034,"Delivery of Athletics Camp during summer progarmme on 11th, 12th, 13th August",18/12/2014,99820,540.00,Revenue,Chorley School Sport Partnership,56115
Chorley Borough Council,http://statistics.data.gov.uk/id/local-authority/30UE,Unapportionable Central OHeads,1009,Transformation Management,General Repairs - Reactive,20004,Repairs Maintenance & Alts,5005,Reactive repairs for six months until March 2015.,12/12/2014,99732,279.04,Revenue,Chubb Electronic Sec Sys Ltd,16228
Chorley Borough Council,http://statistics.data.gov.uk/id/local-authority/30UE,Corporate Management,1008,Shared Service Arrangement,Professional Fees,14011,Direct Employee Expenses,5001,Full Membership 2015,05/12/2014,99575,310.00,Revenue,CIPFA,16201
Chorley Borough Council,http://statistics.data.gov.uk/id/local-authority/30UE,Economic Development,1096,Economic Development,Tools & Equipment - Maintenance,40005,"Equipment, Furniture & Materia",5023,Please supply 20 Mushrooms,10/12/2014,99587,100.00,Revenue,City B Group Ltd,47300
Chorley Borough Council,http://statistics.data.gov.uk/id/local-authority/30UE,Economic Development,1096,Economic Development,Tools & Equipment - Maintenance,40005,"Equipment, Furniture & Materia",5023,Please supply 4 Corner Legs with foot plate,10/12/2014,99587,100.00,Revenue,City B Group Ltd,47300
Chorley Borough Council,http://statistics.data.gov.uk/id/local-authority/30UE,Economic Development,1096,Economic Development,Tools & Equipment - Maintenance,40005,"Equipment, Furniture & Materia",5023,Please supply 6 Centre Legs with Foot plate,10/12/2014,99587,150.00,Revenue,City B Group Ltd,47300
Chorley Borough Council,http://statistics.data.gov.uk/id/local-authority/30UE,Culture & Heritage,1036,Streetscene & Leisure Contracts,Exhibitions,40176,Miscellaneous Expenses,5034,Astley Hall Museum and Art Gallery 1 x Vista glass top case with pull and slide door mechanism 600mmW x 600mmD ,18/12/2014,99843,"1,933.75",Revenue,ClickNetherfield Ltd,66887
Chorley Borough Council,http://statistics.data.gov.uk/id/local-authority/30UE,Development Control,1091,Planning,Legal Fees,40171,Miscellaneous Expenses,5034,Monitoring Fees in Section 106 Agreements - Advice 5.5hrs 21 November 2014,10/12/2014,99584,"1,237.50",Revenue,NAME REDACTED,17531
Chorley Borough Council,http://statistics.data.gov.uk/id/local-authority/30UE,Capital,Capital,Streetscene & Leisure Contracts,Main Contractor,3007,Capital Expenditure,Capital,Surfacing of the full length of path along the snowdrop trail in Astley Park woods to spec agreed on site visit,03/12/2014,99384,"6,000.00",Capital,Conservation Contracts North West,20520
Chorley Borough Council,http://statistics.data.gov.uk/id/local-authority/30UE,Open Spaces,1038,Streetscene & Leisure Contracts,Miscellaneous Expenses,40200,Miscellaneous Expenses,5034,Allotment site,03/12/2014,99352,"5,000.00",Revenue,Coppull Parish Council,17025
Chorley Borough Council,http://statistics.data.gov.uk/id/local-authority/30UE,Central Support Services,1009,Transformation Management,General Repairs - Reactive,20004,Repairs Maintenance & Alts,5005,Reactive repairs for six months until March 2015.,03/12/2014,99305,899.90,Revenue,Corlett Electrical Eng Co Ltd,16271
Chorley Borough Council,http://statistics.data.gov.uk/id/local-authority/30UE,Central Support Services,1009,Transformation Management,General Subscriptions,40146,Grants and Subscriptions,5031,Subscription for technical support from 14/11/14 until 30/11/15.,03/12/2014,99452,"3,229.64",Revenue,CoStar UK Limited,67985
Chorley Borough Council,http://statistics.data.gov.uk/id/local-authority/30UE,Capital,Capital,Governance,Main Contractor,3007,Capital Expenditure,Capital,"Re: Unit 1-4, 98 - 102 Market Street",10/12/2014,99702,720.00,Capital,CSR Sustain,67886
Chorley Borough Council,http://statistics.data.gov.uk/id/local-authority/30UE,Elections,1012,Governance,Canvass Payments,40081,Services,5027,Provision of final stage of canvass 2014 - Encouragement - (door knock),05/12/2014,99512,"4,666.34",Revenue,DATA TRACKING LTD,67068
Chorley Borough Council,http://statistics.data.gov.uk/id/local-authority/30UE,Elections,1012,Governance,Canvass Payments,40081,Services,5027,1550 completed HEFs,10/12/2014,99582,"1,550.00",Revenue,DATA TRACKING LTD,67068
Chorley Borough Council,http://statistics.data.gov.uk/id/local-authority/30UE,Elections,1012,Governance,Canvass Payments,40081,Services,5027,"extra stage of canvass to promote registration Canvas 4329 HEF�s at 1.50 each Canvas 5230 ITR�s at 95p each",12/12/2014,99741,"5,731.00",Revenue,DATA TRACKING LTD,67068
Chorley Borough Council,http://statistics.data.gov.uk/id/local-authority/30UE,Service Management & Support,1009,Streetscene & Leisure Contracts,Tools & Equipment - Purchase,40003,"Equipment, Furniture & Materia",5023,Supply Husqvarna M53S Pro mulching mowers as per your quote to be delivered to Bengal St depot,03/12/2014,99467,"3,042.00",Revenue,Dick Leigh,17138
Chorley Borough Council,http://statistics.data.gov.uk/id/local-authority/30UE,Service Management & Support,1009,Streetscene & Leisure Contracts,Tools & Equipment - Purchase,40003,"Equipment, Furniture & Materia",5023,Carryout repairs and supply items as on invoice number 011630 already supplied,18/12/2014,99709,298.66,Revenue,Dick Leigh,17138
Chorley Borough Council,http://statistics.data.gov.uk/id/local-authority/30UE,Service Management & Support,1009,Streetscene & Leisure Contracts,Tools & Equipment - Maintenance,40005,"Equipment, Furniture & Materia",5023,Supply items as per Document number 011852 already supplied,23/12/2014,99912,256.13,Revenue,Dick Leigh,17138
Chorley Borough Council,http://statistics.data.gov.uk/id/local-authority/30UE,Democratic Represent and  Mgnt,1007,Streetscene & Leisure Contracts,Fixtures & Fittings - Purchase,20027,Fixtures and Fittings,5010,Fridge for Eaves Green Community Centre,18/12/2014,99432,315.83,Revenue,Domestic Appliance Centre,17122
Chorley Borough Council,http://statistics.data.gov.uk/id/local-authority/30UE,Unapportionable Central OHeads,1009,Governance,Fixtures & Fittings - Purchase,20027,Fixtures and Fittings,5010,"1 standard sized Refrigerator to be delivered to the Town Hall, Market St. PR7 1DP",18/12/2014,99841,125.00,Revenue,Domestic Appliance Centre,17122
Chorley Borough Council,http://statistics.data.gov.uk/id/local-authority/30UE,Central Support Services,1009,Governance,Fixtures & Fittings - Purchase,20027,Fixtures and Fittings,5010,1 standard sized Refrigerator to be delivered at Union St Civic Offices,18/12/2014,99841,125.00,Revenue,Domestic Appliance Centre,17122
Chorley Borough Council,http://statistics.data.gov.uk/id/local-authority/30UE,Community Development,1097,Governance,Grants To Other Organisations,40127,Grants and Subscriptions,5031,Councillor Community Grant,05/12/2014,99577,250.00,Revenue,Eaves Green Residents Group,57326
Chorley Borough Council,http://statistics.data.gov.uk/id/local-authority/30UE,Central Support Services,1009,"Customer, ICT & Transactional",Consultants` Fees,40077,Services,5027,New filing systems - TPOs and Enforcement including set up and migration and import from HDD,18/12/2014,99712,"1,200.00",Revenue,EDM Consulting Ltd,55511
Chorley Borough Council,http://statistics.data.gov.uk/id/local-authority/30UE,Central Support Services,1009,"Customer, ICT & Transactional",Mobile Phones,40086,Communication and Computing,5028,December Charges,18/12/2014,99700,"1,169.24",Revenue,EE - Orange,16486
Chorley Borough Council,http://statistics.data.gov.uk/id/local-authority/30UE,Central Support Services,1009,"Customer, ICT & Transactional",Mobile Phones,40086,Communication and Computing,5028,December Charges,18/12/2014,99700,3.00,Revenue,EE - Orange,16486
Chorley Borough Council,http://statistics.data.gov.uk/id/local-authority/30UE,Central Support Services,1009,Transformation Management,General Repairs - Reactive,20004,Repairs Maintenance & Alts,5005,Reactive repairs for six months until March 2015.,03/12/2014,99471,525.80,Revenue,Ellesmere Engineering Co Ltd,17520
Chorley Borough Council,http://statistics.data.gov.uk/id/local-authority/30UE,Building Control,1090,Planning,IT Software - Annual Licences,40101,Communication and Computing,5028,Software Licence Renewal - Design SAP- 2015 Reference No. 1062 ,23/12/2014,99878,350.00,Revenue,Elmhurst Energy Systems Ltd,21165
Chorley Borough Council,http://statistics.data.gov.uk/id/local-authority/30UE,Service Management & Support,1009,Streetscene & Leisure Contracts,Diesel/Derv,30007,Direct Transport Costs,5016,Supply 4000 litres of Gas oil delivered to Bengal St depot am delivery as per your quote via the chest,23/12/2014,99888,"2,116.00",Revenue,EmoOil Ltd,19926
Chorley Borough Council,http://statistics.data.gov.uk/id/local-authority/30UE,Service Management & Support,1009,Streetscene & Leisure Contracts,Diesel/Derv,30007,Direct Transport Costs,5016,Supply 8000 litres of road diesel delivered to Bengal St depot am delivery as per your quote via the chest,23/12/2014,99889,"7,996.00",Revenue,EmoOil Ltd,19926
Chorley Borough Council,http://statistics.data.gov.uk/id/local-authority/30UE,Open Spaces,1038,Streetscene & Leisure Contracts,Rent/Hire Of Premises,20017,Premises Rents,5007,"Duxbury Coach House Rent - 10,625 per qtr To be invoiced quarterly Q1: 25/03/14 - 24/06/14    Q2: 25/06/14 - 24/09/14",10/12/2014,99628,"10,625.00",Revenue,European Settled Estates Plc,16495
Chorley Borough Council,http://statistics.data.gov.uk/id/local-authority/30UE,Democratic Represent and  Mgnt,1007,Streetscene & Leisure Contracts,Rent/Hire Of Premises,20017,Premises Rents,5007,"Service Charge - 1,125 per qtr To be invoiced quarterly Q1: 25/03/14 - 24/06/14    Q2: 25/06/14 - 24/09/14",10/12/2014,99628,"1,125.00",Revenue,European Settled Estates Plc,16495
Chorley Borough Council,http://statistics.data.gov.uk/id/local-authority/30UE,Service Management & Support,1009,Streetscene & Leisure Contracts,Supplies-Grounds Maintenance,40025,"Equipment, Furniture & Materia",5023,300 Bare rooted Hawthorn whips 300 Bare rooted Beech whips 300 Bare rooted Hazel whips ,10/12/2014,99598,360.00,Revenue,Everglades Nurseries Ltd,20202
Chorley Borough Council,http://statistics.data.gov.uk/id/local-authority/30UE,Service Management & Support,1009,Streetscene & Leisure Contracts,Hire Of Transport,30028,Contrct Hire & Operating Lease,5018,Hire of Case tractor and side arm flail for Chorley Council at price quoted ,18/12/2014,99640,"1,714.37",Revenue,F R Sharrock Ltd,18091
Chorley Borough Council,http://statistics.data.gov.uk/id/local-authority/30UE,Central Support Services,1009,Transformation Management,General Repairs - Reactive,20004,Repairs Maintenance & Alts,5005,Professional services for extension on Eaves Green CC.,23/12/2014,99697,975.00,Revenue,Frederick G Markland Associates,68088
Chorley Borough Council,http://statistics.data.gov.uk/id/local-authority/30UE,Service Management & Support,1009,Streetscene & Leisure Contracts,Freight Transport Assoc Fees,40150,Grants and Subscriptions,5031,Carryout 12 month Audit of Olicence vehicle files for Olicence compliance,18/12/2014,99808,352.05,Revenue,Freight Transport Assoc Ltd,16333
Chorley Borough Council,http://statistics.data.gov.uk/id/local-authority/30UE,Service Management & Support,1009,Streetscene & Leisure Contracts,Freight Transport Assoc Fees,40150,Grants and Subscriptions,5031,Carryout 6 weekly safety inspection on DK07LDE for Olicence compliance,18/12/2014,99808,115.33,Revenue,Freight Transport Assoc Ltd,16333
Chorley Borough Council,http://statistics.data.gov.uk/id/local-authority/30UE,Service Management & Support,1009,Streetscene & Leisure Contracts,Freight Transport Assoc Fees,40150,Grants and Subscriptions,5031,Carryout 6 weekly safety inspection on RV14DVB for Olicence compliance,18/12/2014,99808,115.33,Revenue,Freight Transport Assoc Ltd,16333
Chorley Borough Council,http://statistics.data.gov.uk/id/local-authority/30UE,Community Development,1097,Policy & Performance,Core Funding Grants,40133,Grants and Subscriptions,5031,small community funding,23/12/2014,99827,300.00,Revenue,Friends of Healey Nab,22559
Chorley Borough Council,http://statistics.data.gov.uk/id/local-authority/30UE,Flood Defence & Land Drainage,1046,Health Environment & Neighbourhoods,Impounded Dogs Costs,40207,Miscellaneous Expenses,5034,Kennelling fees for 2014/15,10/12/2014,99606,810.00,Revenue,Glencoe Boarding Kennels,16734
Chorley Borough Council,http://statistics.data.gov.uk/id/local-authority/30UE,Homelessness,1075,Housing,Fixtures & Fittings - Purchase,20027,Fixtures and Fittings,5010,Purchase of 1x Ipso light commercial high spin stack washer systems free standing self-heated pump drain with 8kg load ,18/12/2014,99766,"3,485.00",Revenue,Goodman Sparks Ltd,66818
Chorley Borough Council,http://statistics.data.gov.uk/id/local-authority/30UE,Homelessness,1075,Housing,Fixtures & Fittings - Purchase,20027,Fixtures and Fittings,5010,Installation Fee,18/12/2014,99766,350.00,Revenue,Goodman Sparks Ltd,66818
Chorley Borough Council,http://statistics.data.gov.uk/id/local-authority/30UE,Flood Defence & Land Drainage,1046,Health Environment & Neighbourhoods,External Contractor,40198,Miscellaneous Expenses,5034,reactive and proactive graffitti removal,05/12/2014,99496,"1,246.87",Revenue,Graffiti Removal (North) Ltd,17320
Chorley Borough Council,http://statistics.data.gov.uk/id/local-authority/30UE,Flood Defence & Land Drainage,1046,Health Environment & Neighbourhoods,External Contractor,40198,Miscellaneous Expenses,5034,reactive and proactive graffitti removal,18/12/2014,99842,"1,246.87",Revenue,Graffiti Removal (North) Ltd,17320
Chorley Borough Council,http://statistics.data.gov.uk/id/local-authority/30UE,Corporate Management,1008,Shared Service Arrangement,External Audit,40064,Services,5027,2014-15 External Audit Fee,18/12/2014,99769,"14,860.00",Revenue,Grant Thornton UK LLP,57322
Chorley Borough Council,http://statistics.data.gov.uk/id/local-authority/30UE,Democratic Represent and  Mgnt,1007,Streetscene & Leisure Contracts,General Repairs - Reactive,20004,Repairs Maintenance & Alts,5005,"Works to All Seasons Leisure Centre as per quotation 23/08/14. Option B replace the existing fauty twin pump set.",10/12/2014,99626,"1,298.43",Revenue,Halsall Heating,67156
Chorley Borough Council,http://statistics.data.gov.uk/id/local-authority/30UE,Recreation & Sport,1037,Streetscene & Leisure Contracts,General Repairs - Reactive,20004,Repairs Maintenance & Alts,5005,"Works to All Seasons Leisure Centre as per quotation 23/08/14. Option B Replace the existing fauty twin pump set.",10/12/2014,99627,"2,181.70",Revenue,Halsall Heating,67156
Chorley Borough Council,http://statistics.data.gov.uk/id/local-authority/30UE,Service Management & Support,1009,Streetscene & Leisure Contracts,Supplies - Workshop,40246,"Equipment, Furniture & Materia",5023,Rubber Bands,10/12/2014,99670,285.00,Revenue,Harrisons Packaging Ltd,17555
Chorley Borough Council,http://statistics.data.gov.uk/id/local-authority/30UE,Unapportionable Central OHeads,1009,Policy & Performance,Exhibitions & Special Events,40158,Miscellaneous Expenses,5034,"6,000 Nutcracker Trail leaflets",05/12/2014,99562,346.00,Revenue,Haslam PrintersLtd,21777
Chorley Borough Council,http://statistics.data.gov.uk/id/local-authority/30UE,Unapportionable Central OHeads,1009,HR & Org. Development,Publications,40054,"Printing, Stationery & General",5026,2 Copies of MJ Magazine - subscription renewal for 2015,18/12/2014,99751,280.00,Revenue,Hemming Group Ltd,17165
Chorley Borough Council,http://statistics.data.gov.uk/id/local-authority/30UE,Other Short Term Debtors,,Shared Service Arrangement,General Balances,100,Balance Sheet,Balance,Payment of Output VAT owed to HMRC,03/12/2014,99476,"8,282.66",Revenue,HM Customs And Excise,17569
Chorley Borough Council,http://statistics.data.gov.uk/id/local-authority/30UE,Central Support Services,1009,"Customer, ICT & Transactional",Consultants` Fees,40077,Services,5027,1 day consultancy to implement UKFSS integration,10/12/2014,99683,950.00,Revenue,IDOX Software Limited,17542
Chorley Borough Council,http://statistics.data.gov.uk/id/local-authority/30UE,Control Accounts,Control,Shared Service Arrangement,Manual Control Account,1,Balance Sheet,Balance,Inland Revenue 065py00102078,10/12/2014,99621,"2,730.00",Revenue,Inland Revenue 065py00102078,17445
Chorley Borough Council,http://statistics.data.gov.uk/id/local-authority/30UE,Flood Defence & Land Drainage,1046,Health Environment & Neighbourhoods,Miscellaneous Expenses,40200,Miscellaneous Expenses,5034,"Supply 35 yard walk in skip, with exchangesas requested during the day on Thursday 4th December 2015.",23/12/2014,99883,397.00,Revenue,J Dickinson & Son (Horwich)Ltd,17230
Chorley Borough Council,http://statistics.data.gov.uk/id/local-authority/30UE,Economic Development,1096,Economic Development,Exhibitions & Special Events,40158,Miscellaneous Expenses,5034,"To Erect, Maintain and Remove Festive Bunting prior to 1st June as per quote ref 1351",03/12/2014,99335,"1,577.00",Revenue,J M Services (North West) Ltd,17837
Chorley Borough Council,http://statistics.data.gov.uk/id/local-authority/30UE,Community Development,1097,Governance,Premises Related Insurances,20068,Premises Related Insurance,5014,35/37 Market Street,10/12/2014,99696,"7,218.75",Revenue,J R Keys,17124
Chorley Borough Council,http://statistics.data.gov.uk/id/local-authority/30UE,Flood Defence & Land Drainage,1046,Health Environment & Neighbourhoods,External Contractor,40198,Miscellaneous Expenses,5034,Authorship of  Adlington DHR Report. based on an hourly rate and paid in two tranches,05/12/2014,99503,"1,425.00",Revenue,John Doyle Projects,66412
Chorley Borough Council,http://statistics.data.gov.uk/id/local-authority/30UE,Service Management & Support,1009,Streetscene & Leisure Contracts,Supplies-Grounds Maintenance,40025,"Equipment, Furniture & Materia",5023,Christmas Trees,10/12/2014,99600,840.00,Revenue,John H Mayor & Sons Ltd,16635
Chorley Borough Council,http://statistics.data.gov.uk/id/local-authority/30UE,Development Control,1091,Planning,Statutory Notices,40160,Miscellaneous Expenses,5034,Planning Public Notices to appear in the Chorley Guardian April 2014 - March 2015,03/12/2014,99303,265.62,Revenue,Johnston Publishing Ltd,20072
Chorley Borough Council,http://statistics.data.gov.uk/id/local-authority/30UE,Development Control,1091,Planning,Statutory Notices,40160,Miscellaneous Expenses,5034,Planning Public Notices to appear in the Chorley Guardian April 2014 - March 2015,10/12/2014,99641,307.56,Revenue,Johnston Publishing Ltd,20072
Chorley Borough Council,http://statistics.data.gov.uk/id/local-authority/30UE,Development Control,1091,Planning,Statutory Notices,40160,Miscellaneous Expenses,5034,Planning Public Notices to appear in the Chorley Guardian April 2014 - March 2015,10/12/2014,99642,475.32,Revenue,Johnston Publishing Ltd,20072
Chorley Borough Council,http://statistics.data.gov.uk/id/local-authority/30UE,Development Control,1091,Planning,Statutory Notices,40160,Miscellaneous Expenses,5034,Planning Public Notices to appear in the Chorley Guardian April 2014 - March 2015,18/12/2014,99824,363.48,Revenue,Johnston Publishing Ltd,20072
Chorley Borough Council,http://statistics.data.gov.uk/id/local-authority/30UE,Flood Defence & Land Drainage,1046,Health Environment & Neighbourhoods,Miscellaneous Expenses,40200,Miscellaneous Expenses,5034,"Supply 30,000 white dog bags with magenta design as previous Cost of 26.05 per 1000 total cost 782.00",18/12/2014,99762,781.50,Revenue,JRB EnterpriseLtd,21819
Chorley Borough Council,http://statistics.data.gov.uk/id/local-authority/30UE,Capital,Capital,Housing,Grants,3002,Capital Expenditure,Capital,1248 3 Aspen Gardens,10/12/2014,99690,"4,420.00",Capital,K Berry Ltd,16421
Chorley Borough Council,http://statistics.data.gov.uk/id/local-authority/30UE,Economic Development,1096,Economic Development,Grants To Other Organisations,40127,Grants and Subscriptions,5031,Starting in Business Grant,05/12/2014,99483,250.00,Revenue,NAME REDACTED,67979
Chorley Borough Council,http://statistics.data.gov.uk/id/local-authority/30UE,Economic Development,1096,Economic Development,Grants To Other Organisations,40127,Grants and Subscriptions,5031,Business Rates ,10/12/2014,99604,615.50,Revenue,Keeley Edgeley of Tiny Rockers Ltd,60754
Chorley Borough Council,http://statistics.data.gov.uk/id/local-authority/30UE,Economic Development,1096,Economic Development,Grants To Other Organisations,40127,Grants and Subscriptions,5031,Business Rates,23/12/2014,99926,616.50,Revenue,Keeley Edgeley of Tiny Rockers Ltd,60754
Chorley Borough Council,http://statistics.data.gov.uk/id/local-authority/30UE,Homelessness,1075,Housing,Grants To Other Organisations,40127,Grants and Subscriptions,5031,"Provision of pre-tenancy training in Chorley, Preston, South Ribble and West Lancashire Q4.",23/12/2014,99876,"3,718.25",Revenue,Key,61252
Chorley Borough Council,http://statistics.data.gov.uk/id/local-authority/30UE,Corporate Management,1008,Health Environment & Neighbourhoods,Pest Control,20039,Cleaning and Domestic Supplies,5012,Sakarat Bromabait place packs SAKBWPP18K,03/12/2014,99459,268.25,Revenue,Killgerm Chemicals Ltd,16879
Chorley Borough Council,http://statistics.data.gov.uk/id/local-authority/30UE,Central Support Services,1009,Health Environment & Neighbourhoods,Pest Control,20039,Cleaning and Domestic Supplies,5012,Sakarat Bromabait place packs,23/12/2014,99708,321.90,Revenue,Killgerm Chemicals Ltd,16879
Chorley Borough Council,http://statistics.data.gov.uk/id/local-authority/30UE,Corporate Management,1008,Health Environment & Neighbourhoods,Pest Control,20039,Cleaning and Domestic Supplies,5012,Sorexa mouse killer,23/12/2014,99708,44.55,Revenue,Killgerm Chemicals Ltd,16879
Chorley Borough Council,http://statistics.data.gov.uk/id/local-authority/30UE,Central Support Services,1009,Health Environment & Neighbourhoods,Pest Control,20039,Cleaning and Domestic Supplies,5012,Rat bait tunnel - box of 12,23/12/2014,99710,86.40,Revenue,Killgerm Chemicals Ltd,16879
Chorley Borough Council,http://statistics.data.gov.uk/id/local-authority/30UE,Corporate Management,1008,Health Environment & Neighbourhoods,Pest Control,20039,Cleaning and Domestic Supplies,5012,Motion sensor camera 4200 with memory card 8gb,23/12/2014,99710,109.00,Revenue,Killgerm Chemicals Ltd,16879
Chorley Borough Council,http://statistics.data.gov.uk/id/local-authority/30UE,Central Support Services,1009,Health Environment & Neighbourhoods,Pest Control,20039,Cleaning and Domestic Supplies,5012,Acheta mite hand book,23/12/2014,99710,21.95,Revenue,Killgerm Chemicals Ltd,16879
Chorley Borough Council,http://statistics.data.gov.uk/id/local-authority/30UE,Corporate Management,1008,Health Environment & Neighbourhoods,Pest Control,20039,Cleaning and Domestic Supplies,5012,Fiacm D powder contains 1% bendiocarb,23/12/2014,99710,29.05,Revenue,Killgerm Chemicals Ltd,16879
Chorley Borough Council,http://statistics.data.gov.uk/id/local-authority/30UE,Central Support Services,1009,Health Environment & Neighbourhoods,Pest Control,20039,Cleaning and Domestic Supplies,5012,Pack of ten AA batteries,23/12/2014,99710,5.90,Revenue,Killgerm Chemicals Ltd,16879
Chorley Borough Council,http://statistics.data.gov.uk/id/local-authority/30UE,Central Support Services,1009,Health Environment & Neighbourhoods,Pest Control,20039,Cleaning and Domestic Supplies,5012,Used points to pay for this order refernce number SO 020046979 ,23/12/2014,99710,9.00,Revenue,Killgerm Chemicals Ltd,16879
Chorley Borough Council,http://statistics.data.gov.uk/id/local-authority/30UE,Central Support Services,1009,Policy & Performance,Exhibitions & Special Events,40158,Miscellaneous Expenses,5034,Land train hire for 4 weekends as a Christmas attraction,03/12/2014,99258,"2,895.00",Revenue,Lakeandland,63078
Chorley Borough Council,http://statistics.data.gov.uk/id/local-authority/30UE,Parking Services,1066,Streetscene & Leisure Contracts,Car Park Lamps,20064,Grounds Maintenance Costs,5013,Repair lighting at Chorley car parks (various sites) November & December 2014. Materials and labour as per REF M59645,18/12/2014,99705,"1,357.06",Revenue,Lancashire County Council,20027
Chorley Borough Council,http://statistics.data.gov.uk/id/local-authority/30UE,Corporate Management,1008,Policy & Performance,Other Fees,40212,Miscellaneous Expenses,5034,Meals on Wheels subsidy,05/12/2014,99566,404.00,Revenue,Lancashire Fayre,62967
Chorley Borough Council,http://statistics.data.gov.uk/id/local-authority/30UE,Corporate Management,1008,Streetscene & Leisure Contracts,Clinical Waste Collection,50007,Private Contractors,5042,Disposal of Clinical waste from Chorley Households. April 2014 to March 2015 yellow bag collections approx 550 per month,10/12/2014,99518,"1,051.27",Revenue,Lancashire Teaching Hospitals NHS FT,19003
Chorley Borough Council,http://statistics.data.gov.uk/id/local-authority/30UE,Central Support Services,1009,Streetscene & Leisure Contracts,Clinical Waste Collection,50007,Private Contractors,5042,Disposal of Clinical waste from Chorley Households. April 2014 to March 2015 yellow bag collections approx 550 per month,05/12/2014,99569,"1,116.06",Revenue,Lancashire Teaching Hospitals NHS FT,19003
Chorley Borough Council,http://statistics.data.gov.uk/id/local-authority/30UE,Development Control,1091,Governance,Legal Fees,40171,Miscellaneous Expenses,5034,Professional fees in relation to Land at Botany Bay and Great Knowley. Further Opinion 01.12.14 Further Opinion 04.12.14,18/12/2014,99805,800.00,Revenue,Landmark Chambers,56730
Chorley Borough Council,http://statistics.data.gov.uk/id/local-authority/30UE,Parking Services,1066,Streetscene & Leisure Contracts,External Contractors,50008,Private Contractors,5042,Enforcement and cash collection for off street car parking 1-5 September 2014,10/12/2014,99674,"4,980.29",Revenue,Legion Group,21973
Chorley Borough Council,http://statistics.data.gov.uk/id/local-authority/30UE,Parking Services,1066,Streetscene & Leisure Contracts,External Contractors,50008,Private Contractors,5042,Car Park Management  for 1 to 4 October Enforcement hours,10/12/2014,99675,453.60,Revenue,Legion Group,21973
Chorley Borough Council,http://statistics.data.gov.uk/id/local-authority/30UE,Parking Services,1066,Streetscene & Leisure Contracts,External Contractors,50008,Private Contractors,5042,Car Park Management  for 1 to 4 October Cash Collections,10/12/2014,99675,261.36,Revenue,Legion Group,21973
Chorley Borough Council,http://statistics.data.gov.uk/id/local-authority/30UE,Parking Services,1066,Streetscene & Leisure Contracts,External Contractors,50008,Private Contractors,5042,Car Park Management  for 1 to 4 October Cash in Transit,10/12/2014,99675,31.77,Revenue,Legion Group,21973
Chorley Borough Council,http://statistics.data.gov.uk/id/local-authority/30UE,Economic Development,1096,Economic Development,Grants To Other Organisations,40127,Grants and Subscriptions,5031,Shop front grant,23/12/2014,99902,"2,360.00",Revenue,Let Me Now Ltd,68213
Chorley Borough Council,http://statistics.data.gov.uk/id/local-authority/30UE,Other Short Term Debtors,,HR & Org. Development,Other Debtors,98,Balance Sheet,Balance,Home Technology Interest,10/12/2014,99664,"11,410.37",Revenue,Lets Connect Limited,68086
Chorley Borough Council,http://statistics.data.gov.uk/id/local-authority/30UE,Unapportionable Central OHeads,1009,Shared Service Arrangement,Conferences - Staff,40120,Expenses,5030,Provision of Business Rates Retention Briefing on 02/12/2014 at South Ribble Borough Council Civic Offices in Leyland. ,05/12/2014,99505,"1,881.00",Revenue,LG Futures,22551
Chorley Borough Council,http://statistics.data.gov.uk/id/local-authority/30UE,Central Support Services,1009,Governance,Asset Maintenance Fund,20012,Repairs Maintenance & Alts,5005,pass through,23/12/2014,99907,"7,487.19",Revenue,Liberata UK,20716
Chorley Borough Council,http://statistics.data.gov.uk/id/local-authority/30UE,Community Development,1097,Policy & Performance,Grants To Other Organisations,40127,Grants and Subscriptions,5031,Delivery of the foodbank service - 2nd instalment,03/12/2014,99450,"7,500.00",Revenue,Living Waters Storehouse,60925
Chorley Borough Council,http://statistics.data.gov.uk/id/local-authority/30UE,Local Tax Collection,1010,Governance,Legal Fees,40171,Miscellaneous Expenses,5034,Property Searches (recovery of legal fees 1st April 2014 to 30th September 2014),05/12/2014,99456,"1,222.14",Revenue,Local Government Association,16243
Chorley Borough Council,http://statistics.data.gov.uk/id/local-authority/30UE,Homelessness,1075,Housing,Stationery,40050,"Printing, Stationery & General",5026,A4 WEEK TO VIEW DIARY 2015 - BLACK (please supply an alternative colour if this is not available),18/12/2014,99727,1.49,Revenue,Lyreco UK Ltd,17623
Chorley Borough Council,http://statistics.data.gov.uk/id/local-authority/30UE,Homelessness,1075,Housing,Stationery,40050,"Printing, Stationery & General",5026,Lyreco Glue Stick - Large 40G,18/12/2014,99727,1.26,Revenue,Lyreco UK Ltd,17623
Chorley Borough Council,http://statistics.data.gov.uk/id/local-authority/30UE,Homelessness,1075,Housing,Stationery,40050,"Printing, Stationery & General",5026,Lyreco Sticky Tack - 50G Pack,18/12/2014,99727,0.28,Revenue,Lyreco UK Ltd,17623
Chorley Borough Council,http://statistics.data.gov.uk/id/local-authority/30UE,Homelessness,1075,Housing,Stationery,40050,"Printing, Stationery & General",5026,3.343.391 LYRECO OFFICE DESK CALCULATOR 10 DIGITS,18/12/2014,99727,14.52,Revenue,Lyreco UK Ltd,17623
Chorley Borough Council,http://statistics.data.gov.uk/id/local-authority/30UE,Homelessness,1075,Housing,Stationery,40050,"Printing, Stationery & General",5026,GUILDHALL VISITORS BOOK 335x230mm,18/12/2014,99727,31.19,Revenue,Lyreco UK Ltd,17623
Chorley Borough Council,http://statistics.data.gov.uk/id/local-authority/30UE,Homelessness,1075,Housing,Stationery,40050,"Printing, Stationery & General",5026,GUILDHALL VISITORS BOOK 335x230mm REFILLS (50 PAGES),18/12/2014,99727,26.36,Revenue,Lyreco UK Ltd,17623
Chorley Borough Council,http://statistics.data.gov.uk/id/local-authority/30UE,Homelessness,1075,Housing,Stationery,40050,"Printing, Stationery & General",5026,3.332.438 LYRECO I/JET CART COMP HP C6578D,18/12/2014,99727,13.78,Revenue,Lyreco UK Ltd,17623
Chorley Borough Council,http://statistics.data.gov.uk/id/local-authority/30UE,Homelessness,1075,Housing,Stationery,40050,"Printing, Stationery & General",5026,Lyreco Correction Tape Roller - 4.2Mm X 12M Film,18/12/2014,99727,2.32,Revenue,Lyreco UK Ltd,17623
Chorley Borough Council,http://statistics.data.gov.uk/id/local-authority/30UE,Homelessness,1075,Housing,Stationery,40050,"Printing, Stationery & General",5026,"A4 Black and Red books Hardback Ruled & Perforated, 70 sheets",18/12/2014,99727,67.12,Revenue,Lyreco UK Ltd,17623
Chorley Borough Council,http://statistics.data.gov.uk/id/local-authority/30UE,Homelessness,1075,Housing,Stationery,40050,"Printing, Stationery & General",5026,Black 203 x 127mm Card Index Box,18/12/2014,99727,6.79,Revenue,Lyreco UK Ltd,17623
Chorley Borough Council,http://statistics.data.gov.uk/id/local-authority/30UE,Homelessness,1075,Housing,Stationery,40050,"Printing, Stationery & General",5026,Plastic Key Hangers - Assorted,18/12/2014,99727,0.96,Revenue,Lyreco UK Ltd,17623
Chorley Borough Council,http://statistics.data.gov.uk/id/local-authority/30UE,Homelessness,1075,Housing,Stationery,40050,"Printing, Stationery & General",5026,ALUMINIUM FRAMED FABRIC NOTICE BOARD 900MM X 1200MM - BLUE,18/12/2014,99727,55.36,Revenue,Lyreco UK Ltd,17623
Chorley Borough Council,http://statistics.data.gov.uk/id/local-authority/30UE,Homelessness,1075,Housing,Stationery,40050,"Printing, Stationery & General",5026,Pilot V-Sign Fibre Tip Black Pens 0.6mm line Width - Box of 12,18/12/2014,99727,41.04,Revenue,Lyreco UK Ltd,17623
Chorley Borough Council,http://statistics.data.gov.uk/id/local-authority/30UE,Homelessness,1075,Housing,Stationery,40050,"Printing, Stationery & General",5026,"3.110.545 LYRECO HARD BACK TWIN WIRE NOTEBK A4 	 - PACK OF 5",18/12/2014,99727,7.35,Revenue,Lyreco UK Ltd,17623
Chorley Borough Council,http://statistics.data.gov.uk/id/local-authority/30UE,Homelessness,1075,Housing,Stationery,40050,"Printing, Stationery & General",5026,Telephone message pads (pack of 10),18/12/2014,99727,11.30,Revenue,Lyreco UK Ltd,17623
Chorley Borough Council,http://statistics.data.gov.uk/id/local-authority/30UE,Economic Development,1096,Chief Executives Office,Computer Consumables,40099,Communication and Computing,5028,Brother P-Touch H105 Labeller,12/12/2014,99734,35.62,Revenue,Lyreco UK Ltd,17623
Chorley Borough Council,http://statistics.data.gov.uk/id/local-authority/30UE,Economic Development,1096,Chief Executives Office,Computer Consumables,40099,Communication and Computing,5028,Adaptor,12/12/2014,99734,14.36,Revenue,Lyreco UK Ltd,17623
Chorley Borough Council,http://statistics.data.gov.uk/id/local-authority/30UE,Economic Development,1096,Chief Executives Office,Computer Consumables,40099,Communication and Computing,5028,Brother TZe/TC Tapes Black on Red,12/12/2014,99734,14.12,Revenue,Lyreco UK Ltd,17623
Chorley Borough Council,http://statistics.data.gov.uk/id/local-authority/30UE,Corporate Management,1008,Chief Executives Office,Stationery,40050,"Printing, Stationery & General",5026,Pack of 24 velcro hook and loops 25ml,12/12/2014,99734,4.94,Revenue,Lyreco UK Ltd,17623
Chorley Borough Council,http://statistics.data.gov.uk/id/local-authority/30UE,Unapportionable Central OHeads,1009,Chief Executives Office,Stationery,40050,"Printing, Stationery & General",5026,White Magnets,12/12/2014,99734,2.44,Revenue,Lyreco UK Ltd,17623
Chorley Borough Council,http://statistics.data.gov.uk/id/local-authority/30UE,Central Support Services,1009,Chief Executives Office,Stationery,40050,"Printing, Stationery & General",5026,Punched Pockets A4 Side/Top Opening,12/12/2014,99734,10.66,Revenue,Lyreco UK Ltd,17623
Chorley Borough Council,http://statistics.data.gov.uk/id/local-authority/30UE,Unapportionable Central OHeads,1009,Chief Executives Office,Stationery,40050,"Printing, Stationery & General",5026,A4 Laminating Pouches Gloss,12/12/2014,99734,2.14,Revenue,Lyreco UK Ltd,17623
Chorley Borough Council,http://statistics.data.gov.uk/id/local-authority/30UE,Development Control,1091,Chief Executives Office,Stationery,40050,"Printing, Stationery & General",5026,Revolving Whiteboards 1200 x 900mm,12/12/2014,99734,535.18,Revenue,Lyreco UK Ltd,17623
Chorley Borough Council,http://statistics.data.gov.uk/id/local-authority/30UE,Central Support Services,1009,Chief Executives Office,Stationery,40050,"Printing, Stationery & General",5026,I/JET CART COMP HP10 C4844A BLK,12/12/2014,99737,7.82,Revenue,Lyreco UK Ltd,17623
Chorley Borough Council,http://statistics.data.gov.uk/id/local-authority/30UE,Unapportionable Central OHeads,1009,Chief Executives Office,Stationery,40050,"Printing, Stationery & General",5026,Hp C4811A/No.11 Original Inkjet Printhead - Cyan,12/12/2014,99737,69.07,Revenue,Lyreco UK Ltd,17623
Chorley Borough Council,http://statistics.data.gov.uk/id/local-authority/30UE,Central Support Services,1009,Chief Executives Office,Stationery,40050,"Printing, Stationery & General",5026,Hp C4812A/No.11 Original Inkjet Printhead - Magenta,12/12/2014,99737,69.07,Revenue,Lyreco UK Ltd,17623
Chorley Borough Council,http://statistics.data.gov.uk/id/local-authority/30UE,Unapportionable Central OHeads,1009,Chief Executives Office,Stationery,40050,"Printing, Stationery & General",5026,Hp C4813A/No.11 Original Inkjet Printhead - Yellow,12/12/2014,99737,69.07,Revenue,Lyreco UK Ltd,17623
Chorley Borough Council,http://statistics.data.gov.uk/id/local-authority/30UE,Central Support Services,1009,Chief Executives Office,Stationery,40050,"Printing, Stationery & General",5026,blueink bp,12/12/2014,99737,54.75,Revenue,Lyreco UK Ltd,17623
Chorley Borough Council,http://statistics.data.gov.uk/id/local-authority/30UE,Unapportionable Central OHeads,1009,Chief Executives Office,Stationery,40050,"Printing, Stationery & General",5026,pink ink hp,12/12/2014,99737,54.75,Revenue,Lyreco UK Ltd,17623
Chorley Borough Council,http://statistics.data.gov.uk/id/local-authority/30UE,Central Support Services,1009,Chief Executives Office,Stationery,40050,"Printing, Stationery & General",5026,yellow ink hp,12/12/2014,99737,19.72,Revenue,Lyreco UK Ltd,17623
Chorley Borough Council,http://statistics.data.gov.uk/id/local-authority/30UE,Unapportionable Central OHeads,1009,Chief Executives Office,Stationery,40050,"Printing, Stationery & General",5026,Hp C4844A/No.10 Original Inkjet Cartridge - Black,12/12/2014,99737,22.88,Revenue,Lyreco UK Ltd,17623
Chorley Borough Council,http://statistics.data.gov.uk/id/local-authority/30UE,Central Support Services,1009,Chief Executives Office,Stationery,40050,"Printing, Stationery & General",5026,HP C4810A/NO.11 ORIGINAL INKJET PRINTHEAD - BLACK,12/12/2014,99737,17.92,Revenue,Lyreco UK Ltd,17623
Chorley Borough Council,http://statistics.data.gov.uk/id/local-authority/30UE,Service Management & Support,1009,Streetscene & Leisure Contracts,Grounds Maintenance Contractor,20043,Grounds Maintenance Costs,5013,Tree works completed - Various areas,03/12/2014,99438,"1,050.00",Revenue,M J Walker,62044
Chorley Borough Council,http://statistics.data.gov.uk/id/local-authority/30UE,Service Management & Support,1009,Streetscene & Leisure Contracts,Grounds Maintenance Contractor,20043,Grounds Maintenance Costs,5013,Various tree work completed,03/12/2014,99440,"3,370.00",Revenue,M J Walker,62044
Chorley Borough Council,http://statistics.data.gov.uk/id/local-authority/30UE,Central Support Services,1009,Policy & Performance,Exhibitions & Special Events,40158,Miscellaneous Expenses,5034,Photography for Rivington Pike poppy; Christmas Lights Switch on and Christmas activities,18/12/2014,99747,450.00,Revenue,Martin Birchall Photography,22503
Chorley Borough Council,http://statistics.data.gov.uk/id/local-authority/30UE,Economic Development,1096,Policy & Performance,Printing,40043,"Printing, Stationery & General",5026,"Provision of advice, support and contribution to Growth Deal 2 Bid",18/12/2014,99679,"2,463.00",Revenue,Martin Joyce,68083
Chorley Borough Council,http://statistics.data.gov.uk/id/local-authority/30UE,Flood Defence & Land Drainage,1046,HR & Org. Development,Agency Staff,13000,Direct Employee Expenses,5001,Services Procurement,10/12/2014,99630,559.00,Revenue,Matrix SCM Ltd,22128
Chorley Borough Council,http://statistics.data.gov.uk/id/local-authority/30UE,Flood Defence & Land Drainage,1046,HR & Org. Development,Agency Staff,13000,Direct Employee Expenses,5001,Services Procurement,18/12/2014,99831,411.44,Revenue,Matrix SCM Ltd,22128
Chorley Borough Council,http://statistics.data.gov.uk/id/local-authority/30UE,Service Management & Support,1009,Streetscene & Leisure Contracts,Supplies-Grounds Maintenance,40025,"Equipment, Furniture & Materia",5023,20 ton of ultitrec delivered to Yarrow valley park,10/12/2014,99650,371.64,Revenue,Mc & Ma Stewart (Haulage Ltd),16627
Chorley Borough Council,http://statistics.data.gov.uk/id/local-authority/30UE,Service Management & Support,1009,Streetscene & Leisure Contracts,Supplies-Highways,40026,"Equipment, Furniture & Materia",5023,"Supply St name plates to Chorley specification on rails as listed below. PEAR TREE ROAD X 1HUNTSFIELD",18/12/2014,99756,476.48,Revenue,Midland Signs (Leicester) Ltd,16606
Chorley Borough Council,http://statistics.data.gov.uk/id/local-authority/30UE,Economic Development,1096,Economic Development,Grants To Other Organisations,40127,Grants and Subscriptions,5031,final payment shop floor refurb grant,05/12/2014,99567,"1,143.27",Revenue,NAME REDACTED,67155
Chorley Borough Council,http://statistics.data.gov.uk/id/local-authority/30UE,Capital,Capital,Housing,Grants,3002,Capital Expenditure,Capital,INV 812 29 ADDRESS REDACTED,23/12/2014,99928,"4,350.00",Capital,NAME REDACTED,67159
Chorley Borough Council,http://statistics.data.gov.uk/id/local-authority/30UE,Private Sector HSG Renewal,1073,Housing,Miscellaneous Expenses,40200,Miscellaneous Expenses,5034,Provision of Energy Switch Support Service November 2014 (funded by the Affordable Warmth Scheme),03/12/2014,99364,600.00,Revenue,NAME REDACTED,65606
Chorley Borough Council,http://statistics.data.gov.uk/id/local-authority/30UE,Private Sector HSG Renewal,1073,Housing,Miscellaneous Expenses,40200,Miscellaneous Expenses,5034,Provision of Energy Switching Support Service in December 2014 as part of the Affordable Warmth fund,18/12/2014,99873,488.17,Revenue,NAME REDACTED,65606
Chorley Borough Council,http://statistics.data.gov.uk/id/local-authority/30UE,Unapportionable Central OHeads,1009,Policy & Performance,Exhibitions & Special Events,40158,Miscellaneous Expenses,5034,Organisation for chorley live,23/12/2014,99908,"2,000.00",Revenue,Mrs MJ and Mr AN Stewart,63086
Chorley Borough Council,http://statistics.data.gov.uk/id/local-authority/30UE,Central Support Services,1009,Streetscene & Leisure Contracts,Newsletter Production,40166,Miscellaneous Expenses,5034,"Chorley Council, 2PP A5 2015 REFUSE COLLECT CALENDAR (10 KINDS). As per Quote Specification Estimate Ref: ",10/12/2014,99382,"3,132.00",Revenue,N B Colour Print Ltd,17917
Chorley Borough Council,http://statistics.data.gov.uk/id/local-authority/30UE,Flood Defence & Land Drainage,1046,Health Environment & Neighbourhoods,Miscellaneous Expenses,40200,Miscellaneous Expenses,5034,Supply 35 yard ro ro on Weds ADDRESS REDACTED Deliver at latest 9am - remove 3 pm exchanges ,18/12/2014,99774,274.12,Revenue,Neales Waste Management,17583
Chorley Borough Council,http://statistics.data.gov.uk/id/local-authority/30UE,Flood Defence & Land Drainage,1046,Health Environment & Neighbourhoods,Miscellaneous Expenses,40200,Miscellaneous Expenses,5034,"Supply 35 yard skip for clean up day Saturday 1st November 2014Deliver 8.30am collect 1 pmWith exchange if req",18/12/2014,99778,456.44,Revenue,Neales Waste Management,17583
Chorley Borough Council,http://statistics.data.gov.uk/id/local-authority/30UE,Service Management & Support,1009,Streetscene & Leisure Contracts,Refuse Collection,20037,Cleaning and Domestic Supplies,5012,Exchange charge for Street cleaning 20 yard skip at price quoted. (Please use this order No from 01/04/2014),18/12/2014,99785,"1,450.00",Revenue,Neales Waste Management,17583
Chorley Borough Council,http://statistics.data.gov.uk/id/local-authority/30UE,Service Management & Support,1009,Streetscene & Leisure Contracts,Refuse Collection,20037,Cleaning and Domestic Supplies,5012,Exchange of 30 yard green waste skip from Bengal St depot at price quoted. (Please use this order No form 01/04/2014),18/12/2014,99785,280.00,Revenue,Neales Waste Management,17583
Chorley Borough Council,http://statistics.data.gov.uk/id/local-authority/30UE,Service Management & Support,1009,Streetscene & Leisure Contracts,Refuse Collection,20037,Cleaning and Domestic Supplies,5012,Weight charge for green waste from Bengal St depot at price quoted. (Please use this order from 01/04/2014 ),18/12/2014,99785,866.54,Revenue,Neales Waste Management,17583
Chorley Borough Council,http://statistics.data.gov.uk/id/local-authority/30UE,Unapportionable Central OHeads,1009,Governance,Laundry,40042,"Clothing, Uniforms and Laundry",5025,town hall laundry,23/12/2014,99882,526.00,Revenue,North West Ironing & Laundry Centre,20450
Chorley Borough Council,http://statistics.data.gov.uk/id/local-authority/30UE,Service Management & Support,1009,Streetscene & Leisure Contracts,Vehicle Maintenance,30045,Direct Transport Costs,5016,Supply Poly brushes for Swingo 250,18/12/2014,99755,128.61,Revenue,Northern Municipal Spares Ltd,17752
Chorley Borough Council,http://statistics.data.gov.uk/id/local-authority/30UE,Service Management & Support,1009,Streetscene & Leisure Contracts,Vehicle Maintenance,30045,Direct Transport Costs,5016,Supply Poly wire brushes for Swingo 250,18/12/2014,99755,189.63,Revenue,Northern Municipal Spares Ltd,17752
Chorley Borough Council,http://statistics.data.gov.uk/id/local-authority/30UE,Service Management & Support,1009,Streetscene & Leisure Contracts,Vehicle Maintenance,30045,Direct Transport Costs,5016,Supply 4 row channel brushes for Johnston VT651,18/12/2014,99755,214.16,Revenue,Northern Municipal Spares Ltd,17752
Chorley Borough Council,http://statistics.data.gov.uk/id/local-authority/30UE,Service Management & Support,1009,Streetscene & Leisure Contracts,Vehicle Maintenance,30045,Direct Transport Costs,5016,Supply wide sweep belly brush for Johnston vt651,18/12/2014,99755,56.07,Revenue,Northern Municipal Spares Ltd,17752
Chorley Borough Council,http://statistics.data.gov.uk/id/local-authority/30UE,Unapportionable Central OHeads,1009,"Customer, ICT & Transactional",Service Fees,40056,Services,5027,Mailroom Services,10/12/2014,99341,"3,325.00",Revenue,Northgate Information Solutions UK Limited,18285
Chorley Borough Council,http://statistics.data.gov.uk/id/local-authority/30UE,Parking Services,1066,Governance,Electricity,20013,Energy Costs,5006,Un-metered Lighting,18/12/2014,99728,1.02,Revenue,Npower Commercial Gas,16814
Chorley Borough Council,http://statistics.data.gov.uk/id/local-authority/30UE,Parking Services,1066,Governance,Electricity,20013,Energy Costs,5006,Un-metered Pay & Display Machines,18/12/2014,99728,100.63,Revenue,Npower Commercial Gas,16814
Chorley Borough Council,http://statistics.data.gov.uk/id/local-authority/30UE,Flood Defence & Land Drainage,1046,Governance,Electricity,20013,Energy Costs,5006,Un-metered CCTV,18/12/2014,99728,248.06,Revenue,Npower Commercial Gas,16814
Chorley Borough Council,http://statistics.data.gov.uk/id/local-authority/30UE,Parking Services,1066,Streetscene & Leisure Contracts,External Contractors,50008,Private Contractors,5042,Enforcement of 50 hours per week and cash collection from off street car parks as described in tender submission of June ,18/12/2014,99511,"3,506.99",Revenue,NSL Limited,67253
Chorley Borough Council,http://statistics.data.gov.uk/id/local-authority/30UE,Capital,Capital,Housing,Main Contractor,3007,Capital Expenditure,Capital,Refurbishment of Cotswold,03/12/2014,99477,"104,465.24",Capital,P J Services (Bolton) Ltd,62962
Chorley Borough Council,http://statistics.data.gov.uk/id/local-authority/30UE,Capital,Capital,Housing,Main Contractor,3007,Capital Expenditure,Capital,Cotswold House Refurbishment,23/12/2014,99913,"74,364.07",Capital,P J Services (Bolton) Ltd,62962
Chorley Borough Council,http://statistics.data.gov.uk/id/local-authority/30UE,Parking Services,1066,Streetscene & Leisure Contracts,External Contractors,50008,Private Contractors,5042,Estimated Quarterly charges for PCNs issued in 2014 / 2015. 800 PCNs per annum @60p each. /quarter.,10/12/2014,99693,553.85,Revenue,PATROL,21859
Chorley Borough Council,http://statistics.data.gov.uk/id/local-authority/30UE,Homelessness,1075,Housing,Rental Bond Scheme,40241,Miscellaneous Expenses,5034,Rental Bond Scheme,03/12/2014,99480,280.50,Revenue,NAME REDACTED,48504
Chorley Borough Council,http://statistics.data.gov.uk/id/local-authority/30UE,Flood Defence & Land Drainage,1046,Health Environment & Neighbourhoods,External Contractor,40198,Miscellaneous Expenses,5034,Pest control duties for 2014/15,03/12/2014,99304,323.83,Revenue,Peter L Johnson,16727
Chorley Borough Council,http://statistics.data.gov.uk/id/local-authority/30UE,Flood Defence & Land Drainage,1046,Health Environment & Neighbourhoods,External Contractor,40198,Miscellaneous Expenses,5034,Pest control duties for 2014/15,05/12/2014,99522,323.83,Revenue,Peter L Johnson,16727
Chorley Borough Council,http://statistics.data.gov.uk/id/local-authority/30UE,Flood Defence & Land Drainage,1046,Health Environment & Neighbourhoods,External Contractor,40198,Miscellaneous Expenses,5034,Pest control duties for 2014/15,18/12/2014,99718,323.83,Revenue,Peter L Johnson,16727
Chorley Borough Council,http://statistics.data.gov.uk/id/local-authority/30UE,Flood Defence & Land Drainage,1046,Health Environment & Neighbourhoods,External Contractor,40198,Miscellaneous Expenses,5034,Pest control duties for 2014/15,18/12/2014,99850,323.83,Revenue,Peter L Johnson,16727
Chorley Borough Council,http://statistics.data.gov.uk/id/local-authority/30UE,Flood Defence & Land Drainage,1046,Health Environment & Neighbourhoods,Other Contributions,40145,Grants and Subscriptions,5031,Provision of 27 PCSO`s deployed in Chorley Borough Council area for period 1/4/14 to 31/3/2015,03/12/2014,99475,"99,000.00",Revenue,Police & Crime Commissioner,17548
Chorley Borough Council,http://statistics.data.gov.uk/id/local-authority/30UE,Parking Services,1066,Streetscene & Leisure Contracts,Signs:Provision & Maintenance,20065,Grounds Maintenance Costs,5013,3 Signs for Adlington Park and Ride Car Park as per Quotaton REF4471/2,18/12/2014,99586,595.91,Revenue,Poppy Signs Ltd,21898
Chorley Borough Council,http://statistics.data.gov.uk/id/local-authority/30UE,Central Support Services,1009,Policy & Performance,Exhibitions & Special Events,40158,Miscellaneous Expenses,5034,Removal of Santa post box from Market Walk to put into storage,23/12/2014,99919,350.10,Revenue,Poppy Signs Ltd,21898
Chorley Borough Council,http://statistics.data.gov.uk/id/local-authority/30UE,Unapportionable Central OHeads,1009,HR & Org. Development,Corp Training Organisational Development,17006,Indirect Employee Expenses,5002,Communities Team Away Day,05/12/2014,99500,990.00,Revenue,Potential Unearthed,22243
Chorley Borough Council,http://statistics.data.gov.uk/id/local-authority/30UE,Unapportionable Central OHeads,1009,Health Environment & Neighbourhoods,Photocopier Consumables,40049,"Printing, Stationery & General",5026,"Evolution Everyday A4 80gsm, Box 2500",03/12/2014,99465,454.00,Revenue,Premier Paper Group,54451
Chorley Borough Council,http://statistics.data.gov.uk/id/local-authority/30UE,Private Sector HSG Renewal,1073,Housing,Miscellaneous Expenses,40200,Miscellaneous Expenses,5034,Affordable Warmth Scheme: Heating System Maintenance payments and Warm Homes Checks,18/12/2014,99872,"3,275.00",Revenue,Preston Care and Repair,50018
Chorley Borough Council,http://statistics.data.gov.uk/id/local-authority/30UE,Unapportionable Central OHeads,1009,Governance,Fixtures & Fittings - Repair/Mtnce,20028,Fixtures and Fittings,5010,Carpeting of Legal Office,10/12/2014,99649,"1,054.17",Revenue,Preston Road Carpets Ltd,56397
Chorley Borough Council,http://statistics.data.gov.uk/id/local-authority/30UE,Elections,1012,Governance,Postages,40082,Communication and Computing,5028,chorley extra confirmations mailings x1406,18/12/2014,99834,490.69,Revenue,Print Image Facilities LLP,57870
Chorley Borough Council,http://statistics.data.gov.uk/id/local-authority/30UE,Elections,1012,Governance,Postages,40082,Communication and Computing,5028,Chorley 2 year non responders postage,18/12/2014,99837,937.07,Revenue,Print Image Facilities LLP,57870
Chorley Borough Council,http://statistics.data.gov.uk/id/local-authority/30UE,Elections,1012,Governance,Stationery,40050,"Printing, Stationery & General",5026,5000 outer pre printed outer envelopes.,10/12/2014,99597,256.00,Revenue,Print Image Network,21171
Chorley Borough Council,http://statistics.data.gov.uk/id/local-authority/30UE,Homelessness,1075,Housing,External Contractor,40198,Miscellaneous Expenses,5034,"Concierge service at Cotswold Supported Housing, Cotswold Road, Chorley. Lancashire, PR7 3HW",12/12/2014,99603,"4,673.99",Revenue,Profile Security Ltd,58000
Chorley Borough Council,http://statistics.data.gov.uk/id/local-authority/30UE,Economic Development,1096,Economic Development,Grants To Other Organisations,40127,Grants and Subscriptions,5031,starting in business grant payment,05/12/2014,99568,250.00,Revenue,Pure Elegance Weddings & Events Ltd,67777
Chorley Borough Council,http://statistics.data.gov.uk/id/local-authority/30UE,Service Management & Support,1009,Streetscene & Leisure Contracts,Refuse Collection,20037,Cleaning and Domestic Supplies,5012,Charge for the disposal of waste for Chorley Council. (Please use this order No from 01/04/2014),03/12/2014,98409,413.91,Revenue,Quercia Ltd,19049
Chorley Borough Council,http://statistics.data.gov.uk/id/local-authority/30UE,Service Management & Support,1009,Streetscene & Leisure Contracts,Tools & Equipment - Maintenance,40005,"Equipment, Furniture & Materia",5023,Carryout cllibration of C.A.T and Genny machines as per your quotation No 676683,18/12/2014,99704,349.98,Revenue,Radiodetection Limited,18682
Chorley Borough Council,http://statistics.data.gov.uk/id/local-authority/30UE,Democratic Represent and  Mgnt,1007,Streetscene & Leisure Contracts,Exhibitions,40176,Miscellaneous Expenses,5034,"Inscriptions on the Astley Park War Memorial: Cocker, EB. Donohue, J. Withnell, LC.",18/12/2014,99809,360.00,Revenue,Rawcliffe`s Of Chorley Ltd,17993
Chorley Borough Council,http://statistics.data.gov.uk/id/local-authority/30UE,Homelessness,1075,Housing,Rental Bond Scheme,40241,Miscellaneous Expenses,5034,Payments to landlord,03/12/2014,99481,380.00,Revenue,Richard Alan Whitworth and David James Ahern t/a P,67878
Chorley Borough Council,http://statistics.data.gov.uk/id/local-authority/30UE,Surplus or Deficit on Trading,1019,Policy & Performance,Research & Feasibilities,40079,Services,5027,Project management and planning consultancy services as part of the Market Walk Extension project,12/12/2014,99638,"6,000.00",Revenue,Rider Levett Bucknall,67527
Chorley Borough Council,http://statistics.data.gov.uk/id/local-authority/30UE,Economic Development,1096,Streetscene & Leisure Contracts,External Contractor,40198,Miscellaneous Expenses,5034,Carryout refurbishment works to Chorley Town centre big lamp as requested before reinstillation,03/12/2014,99372,600.00,Revenue,Sam Bird Motorbodies,20116
Chorley Borough Council,http://statistics.data.gov.uk/id/local-authority/30UE,Parking Services,1066,Streetscene & Leisure Contracts,General Repairs - Reactive,20004,Repairs Maintenance & Alts,5005,Carryout refurbishment of car park barriers as requested,18/12/2014,99816,390.00,Revenue,Sam Bird Motorbodies,20116
Chorley Borough Council,http://statistics.data.gov.uk/id/local-authority/30UE,Service Management & Support,1009,Streetscene & Leisure Contracts,Diesel/Derv,30007,Direct Transport Costs,5016,Supply road diesel to Bengal St depot as quoted through the chest,03/12/2014,99441,"7,233.88",Revenue,Samuel Cooke & Co Ltd,17173
Chorley Borough Council,http://statistics.data.gov.uk/id/local-authority/30UE,Service Management & Support,1009,Streetscene & Leisure Contracts,Supplies-Grounds Maintenance,40025,"Equipment, Furniture & Materia",5023,Supply road diversion signs as per your quote for Market St road closure,03/12/2014,99468,390.00,Revenue,Smart Image Workwear,21064
Chorley Borough Council,http://statistics.data.gov.uk/id/local-authority/30UE,Service Management & Support,1009,Streetscene & Leisure Contracts,Supplies-Grounds Maintenance,40025,"Equipment, Furniture & Materia",5023,Supply authorised vehicle signs and 5mph signs as requested for Astley Park,03/12/2014,99468,189.00,Revenue,Smart Image Workwear,21064
Chorley Borough Council,http://statistics.data.gov.uk/id/local-authority/30UE,Service Management & Support,1009,Streetscene & Leisure Contracts,Supplies-Grounds Maintenance,40025,"Equipment, Furniture & Materia",5023,Supply road closure due to flooding as requested for Croston,03/12/2014,99468,115.20,Revenue,Smart Image Workwear,21064
Chorley Borough Council,http://statistics.data.gov.uk/id/local-authority/30UE,Flood Defence & Land Drainage,1046,Health Environment & Neighbourhoods,Exhibitions & Special Events,40158,Miscellaneous Expenses,5034,supply food for Chorley Sports Awards on Friday 5th December 2014 to be served from approx 7-7.15 pm till 7.45 - 8pm.,18/12/2014,99682,793.33,Revenue,Southcott Catering Ltd,21842
Chorley Borough Council,http://statistics.data.gov.uk/id/local-authority/30UE,Service Management & Support,1009,Streetscene & Leisure Contracts,Tools & Equipment - Purchase,40003,"Equipment, Furniture & Materia",5023,"Garden Digging Spade 28``, 7 1/2 `` x 11 1/2 ``.  S & J Neverbend.  Product Code 30807",10/12/2014,99655,163.60,Revenue,Spalding (UK) Limited,20264
Chorley Borough Council,http://statistics.data.gov.uk/id/local-authority/30UE,Service Management & Support,1009,Streetscene & Leisure Contracts,Tools & Equipment - Purchase,40003,"Equipment, Furniture & Materia",5023,Garden Edging Knife - Bulldog.  Product Code = 04127,10/12/2014,99655,84.50,Revenue,Spalding (UK) Limited,20264
Chorley Borough Council,http://statistics.data.gov.uk/id/local-authority/30UE,Service Management & Support,1009,Streetscene & Leisure Contracts,Tools & Equipment - Purchase,40003,"Equipment, Furniture & Materia",5023,"Garden Fork 28``, 7 1/2`` x 11 1/2`` - S&J Neverbend.  Product Code = 30809",10/12/2014,99655,81.80,Revenue,Spalding (UK) Limited,20264
Chorley Borough Council,http://statistics.data.gov.uk/id/local-authority/30UE,Service Management & Support,1009,Streetscene & Leisure Contracts,Tools & Equipment - Purchase,40003,"Equipment, Furniture & Materia",5023,"Open Socker Pan Shovel, Size 2, D handle 321 x 247mm, heavy duty.  Product Code - 27272",10/12/2014,99655,119.85,Revenue,Spalding (UK) Limited,20264
Chorley Borough Council,http://statistics.data.gov.uk/id/local-authority/30UE,Service Management & Support,1009,Streetscene & Leisure Contracts,Tools & Equipment - Purchase,40003,"Equipment, Furniture & Materia",5023,Bow Saw 21`` - Bahco.  Product Code = 21254,10/12/2014,99655,49.60,Revenue,Spalding (UK) Limited,20264
Chorley Borough Council,http://statistics.data.gov.uk/id/local-authority/30UE,Central Support Services,1009,Transformation Management,Asset Maintenance Fund,20012,Repairs Maintenance & Alts,5005,Disabled toilet at Town Hall.  5% of Application 1 + Application 2.,23/12/2014,99576,"18,236.03",Revenue,Speakman Contractors Ltd,54838
Chorley Borough Council,http://statistics.data.gov.uk/id/local-authority/30UE,Economic Development,1096,Economic Development,Training Course Fees,17010,Indirect Employee Expenses,5002,Verification for SFEDI Award for Business Advisor ,05/12/2014,99425,475.00,Revenue,St Helier Development & Training Ltd,67973
Chorley Borough Council,http://statistics.data.gov.uk/id/local-authority/30UE,Economic Development,1096,Economic Development,Grants To Other Organisations,40127,Grants and Subscriptions,5031,Shop Front Improvement Grant,03/12/2014,99392,"4,029.00",Revenue,Star Business Solutions NW Ltd,67868
Chorley Borough Council,http://statistics.data.gov.uk/id/local-authority/30UE,Capital,Capital,Housing,Grants,3002,Capital Expenditure,Capital,00921 315 Spendmore Lane,10/12/2014,99689,"4,310.00",Capital,Stewart Douglas Building Contractors Ltd,53736
Chorley Borough Council,http://statistics.data.gov.uk/id/local-authority/30UE,Economic Development,1096,Economic Development,Grants To Other Organisations,40127,Grants and Subscriptions,5031,shop front imprvement grant,18/12/2014,99791,"3,142.60",Revenue,Stills Decorators,68091
Chorley Borough Council,http://statistics.data.gov.uk/id/local-authority/30UE,Community Development,1097,Policy & Performance,Grants To Other Organisations,40127,Grants and Subscriptions,5031,community safety support,03/12/2014,99449,"3,998.92",Revenue,Street Pastors,21946
Chorley Borough Council,http://statistics.data.gov.uk/id/local-authority/30UE,Central Support Services,1009,Transformation Management,Asset Maintenance Fund,20012,Repairs Maintenance & Alts,5005,Union Street Project,18/12/2014,99853,"20,075.00",Revenue,Stringfellow Bldg Cntrctrs Ltd,17893
Chorley Borough Council,http://statistics.data.gov.uk/id/local-authority/30UE,Capital,Capital,Housing,Grants,3002,Capital Expenditure,Capital,INV 9952 20 Homestead,23/12/2014,99927,"3,781.00",Capital,Stringfellow Bldg Cntrctrs Ltd,17893
Chorley Borough Council,http://statistics.data.gov.uk/id/local-authority/30UE,Economic Development,1096,Economic Development,Grants To Other Organisations,40127,Grants and Subscriptions,5031,Shop front trench 2,18/12/2014,99789,"3,746.25",Revenue,Suits your Style NW Ltd,67821
Chorley Borough Council,http://statistics.data.gov.uk/id/local-authority/30UE,Open Spaces,1038,Streetscene & Leisure Contracts,Grounds Maintenance Contractor,20043,Grounds Maintenance Costs,5013,Mowing and Clearing Blainscough Wood Nature Reserve,03/12/2014,99489,750.00,Revenue,T&L Kirkham,57323
Chorley Borough Council,http://statistics.data.gov.uk/id/local-authority/30UE,Unapportionable Central OHeads,1009,Shared Service Arrangement,Pensions Increase Act Payments,18005,Indirect Employee Expenses,5002,Rechargable Pensions,10/12/2014,99533,"5,205.67",Revenue,Tameside MBC-Gmpf,17034
Chorley Borough Council,http://statistics.data.gov.uk/id/local-authority/30UE,Economic Development,1096,Economic Development,Training Course Fees,17010,Indirect Employee Expenses,5002,Delivering a half day tender workshop 2nd October 2014,03/12/2014,99474,300.00,Revenue,Templeman Consultancy Ltd,67600
Chorley Borough Council,http://statistics.data.gov.uk/id/local-authority/30UE,Central Support Services,1009,Health Environment & Neighbourhoods,General Subscriptions,40146,Grants and Subscriptions,5031,SUBSCRIPTION FOR 1 YEAR TO CCTV USER GROUP,10/12/2014,99672,275.00,Revenue,The CCTV User Group,68077
Chorley Borough Council,http://statistics.data.gov.uk/id/local-authority/30UE,Central Support Services,1009,Governance,Other Fees,40212,Miscellaneous Expenses,5034,250 x Mayor`s Christmas Card with paper insert and supplied with envelopes,10/12/2014,99656,298.50,Revenue,The Print Quarter,17987
Chorley Borough Council,http://statistics.data.gov.uk/id/local-authority/30UE,Central Support Services,1009,Policy & Performance,Publicity - Advertising,40157,Miscellaneous Expenses,5034,Christmas posters for town centre and bus shelters,18/12/2014,99819,319.00,Revenue,The Print Quarter,17987
Chorley Borough Council,http://statistics.data.gov.uk/id/local-authority/30UE,Unapportionable Central OHeads,1009,Policy & Performance,Publicity - Advertising,40157,Miscellaneous Expenses,5034,Advertising local attractions,18/12/2014,99832,700.00,Revenue,The Roombook Ltd,67970
Chorley Borough Council,http://statistics.data.gov.uk/id/local-authority/30UE,Unapportionable Central OHeads,1009,Shared Service Arrangement,General Subscriptions,40146,Grants and Subscriptions,5031,Annual Subscription to SpendPro to cover Chorley and South Ribble Borough Council - April 14 to March 15,18/12/2014,99723,750.00,Revenue,Trafford Council,52972
Chorley Borough Council,http://statistics.data.gov.uk/id/local-authority/30UE,Service Management & Support,1009,Streetscene & Leisure Contracts,Grounds Maintenance Contractor,20043,Grounds Maintenance Costs,5013,Various tree work completed,03/12/2014,99267,"1,120.00",Revenue,Treescape North West Ltd,17688
Chorley Borough Council,http://statistics.data.gov.uk/id/local-authority/30UE,Service Management & Support,1009,Streetscene & Leisure Contracts,Grounds Maintenance Contractor,20043,Grounds Maintenance Costs,5013,"Deadwooding trees @ Ransnapp Wood, Euxton",03/12/2014,99291,"3,600.00",Revenue,Treescape North West Ltd,17688
Chorley Borough Council,http://statistics.data.gov.uk/id/local-authority/30UE,Service Management & Support,1009,Streetscene & Leisure Contracts,External Contractor,40198,Miscellaneous Expenses,5034,Emergency callout to make safe  fallen tree during high winds as requested by S Hart. Return day after to clean up site. ,18/12/2014,99845,380.00,Revenue,Treescape North West Ltd,17688
Chorley Borough Council,http://statistics.data.gov.uk/id/local-authority/30UE,Unapportionable Central OHeads,1009,HR & Org. Development,Operational Wages,10200,Direct Employee Expenses,5001,Levels 1-5,23/12/2014,99931,"1,424.57",Revenue,UK Healthcare (BDHSC),17241
Chorley Borough Council,http://statistics.data.gov.uk/id/local-authority/30UE,Control Accounts,Control,HR & Org. Development,General Balances,100,Balance Sheet,Balance,Top Ups,23/12/2014,99931,455.49,Revenue,UK Healthcare (BDHSC),17241
Chorley Borough Council,http://statistics.data.gov.uk/id/local-authority/30UE,Central Support Services,1009,"Customer, ICT & Transactional",Postages,40082,Communication and Computing,5028,Imail Eco Business mono letters - hybrid,10/12/2014,99390,760.86,Revenue,UKMAIL Ltd (Mail),57758
Chorley Borough Council,http://statistics.data.gov.uk/id/local-authority/30UE,Central Support Services,1009,"Customer, ICT & Transactional",Postages,40082,Communication and Computing,5028,Imail Eco Business mono letters - hybrid,18/12/2014,99860,681.59,Revenue,UKMAIL Ltd (Mail),57758
Chorley Borough Council,http://statistics.data.gov.uk/id/local-authority/30UE,Unapportionable Central OHeads,1009,"Customer, ICT & Transactional",Postages,40082,Communication and Computing,5028,Imail Eco Business mono letters - hybrid,18/12/2014,99861,695.13,Revenue,UKMAIL Ltd (Mail),57758
Chorley Borough Council,http://statistics.data.gov.uk/id/local-authority/30UE,Central Support Services,1009,"Customer, ICT & Transactional",Postages,40082,Communication and Computing,5028,Imail Eco Business mono letters - hybrid,23/12/2014,99894,508.56,Revenue,UKMAIL Ltd (Mail),57758
Chorley Borough Council,http://statistics.data.gov.uk/id/local-authority/30UE,Open Spaces,1038,Shared Service Arrangement,Other Contributions,40145,Grants and Subscriptions,5031,Contribution in respect of rivington heritage trust,10/12/2014,99527,430.39,Revenue,United Utilities (RIvington Heritage Trust),67986
Chorley Borough Council,http://statistics.data.gov.uk/id/local-authority/30UE,Economic Development,1096,Economic Development,Water - Metered Supplies,20022,Water Services,5009,Market Stall 1,18/12/2014,99729,322.00,Revenue,United Utilities Water Plc,17926
Chorley Borough Council,http://statistics.data.gov.uk/id/local-authority/30UE,Development Control,1091,Planning,Professional Fees,40063,Services,5027,Planning Support - 17 applications returned @ 125 between 1 August - 22 August 2014,10/12/2014,99581,"2,125.00",Revenue,Urban Vision Partnership Ltd,21181
Chorley Borough Council,http://statistics.data.gov.uk/id/local-authority/30UE,Development Control,1091,Planning,Professional Fees,40063,Services,5027,Planning Officer Support - October 2014 - 28 applications returned @ 125,23/12/2014,99880,"3,500.00",Revenue,Urban Vision Partnership Ltd,21181
Chorley Borough Council,http://statistics.data.gov.uk/id/local-authority/30UE,Development Control,1091,Planning,Professional Fees,40063,Services,5027,November 21 applications returned @ 125,23/12/2014,99880,"2,808.00",Revenue,Urban Vision Partnership Ltd,21181
Chorley Borough Council,http://statistics.data.gov.uk/id/local-authority/30UE,Development Control,1091,Planning,Professional Fees,40063,Services,5027,Mileage 449 miles for the period October & November 2014,23/12/2014,99880,224.50,Revenue,Urban Vision Partnership Ltd,21181
Chorley Borough Council,http://statistics.data.gov.uk/id/local-authority/30UE,Central Support Services,1009,Transformation Management,General Repairs - Reactive,20004,Repairs Maintenance & Alts,5005,Demolition and clearance of site at ADDRESS REDACTED,05/12/2014,99404,"13,650.00",Revenue,Vale Park Demolition Services Ltd,58975
Chorley Borough Council,http://statistics.data.gov.uk/id/local-authority/30UE,Corporate Management,1008,Streetscene & Leisure Contracts,Unitary Payment(S),50009,Private Contractors,5042,Provision of household waste and recycling collection service and ancillary services for 2014/15,10/12/2014,99692,"270,663.75",Revenue,Veolia ES (UK) Ltd,20748
Chorley Borough Council,http://statistics.data.gov.uk/id/local-authority/30UE,Unapportionable Central OHeads,1009,Chief Executives Office,Postages,40082,Communication and Computing,5028,"Weekly mail collectin from Union Street & Town Hall, Chorley",03/12/2014,99448,"1,072.00",Revenue,Whistl North Limited,67256
Chorley Borough Council,http://statistics.data.gov.uk/id/local-authority/30UE,Central Support Services,1009,Chief Executives Office,Postages,40082,Communication and Computing,5028,"Weekly mail collectin from Union Street & Town Hall, Chorley",18/12/2014,99768,395.49,Revenue,Whistl North Limited,67256
Chorley Borough Council,http://statistics.data.gov.uk/id/local-authority/30UE,Culture & Heritage,1036,Streetscene & Leisure Contracts,Consultants` Fees,40077,Services,5027,Curatorial Consultants Fees November 2014.,23/12/2014,99917,349.98,Revenue,Whittle and Draper Fine Art,52271
Chorley Borough Council,http://statistics.data.gov.uk/id/local-authority/30UE,Capital,Capital,Streetscene & Leisure Contracts,Main Contractor,3007,Capital Expenditure,Capital,FAO Contracting Services - Astley Park Reedbed Project - Phase 1 habitat survey. 1.5 days,18/12/2014,99870,375.00,Capital,Wildlife Trust for Lancs Manchester & N Merseyside,20377
Chorley Borough Council,http://statistics.data.gov.uk/id/local-authority/30UE,Capital,Capital,Streetscene & Leisure Contracts,Main Contractor,3007,Capital Expenditure,Capital,"Resurfacing and improvements to Portland St car park, Chorley",10/12/2014,99601,"26,782.07",Capital,William Pye Ltd,60564
Chorley Borough Council,http://statistics.data.gov.uk/id/local-authority/30UE,Capital,Capital,Streetscene & Leisure Contracts,Main Contractor,3007,Capital Expenditure,Capital,2.5% retention payable on practical completion,10/12/2014,99601,989.33,Capital,William Pye Ltd,60564
Chorley Borough Council,http://statistics.data.gov.uk/id/local-authority/30UE,Service Management & Support,1009,Streetscene & Leisure Contracts,Vehicle Maintenance,30045,Direct Transport Costs,5016,Diagnostic checks on NJ10OTW as required for intermitent fault. Replace fuel regulator valve. Reprogram ECU as required.,03/12/2014,99427,435.00,Revenue,Wrekamendid Services Ltd,21188
Chorley Borough Council,http://statistics.data.gov.uk/id/local-authority/30UE,Service Management & Support,1009,Streetscene & Leisure Contracts,Vehicle Maintenance,30045,Direct Transport Costs,5016,Replace speedo drive in gearbox and cable fill gearbox with oil. Run up and test machine on MX06UKJ,03/12/2014,99435,335.00,Revenue,Wrekamendid Services Ltd,21188
Chorley Borough Council,http://statistics.data.gov.uk/id/local-authority/30UE,Central Support Services,1009,HR & Org. Development,Service Fees,40056,Services,5027,Medical Assessments,03/12/2014,99463,397.10,Revenue,WWL NHS FT,66700
Chorley Borough Council,http://statistics.data.gov.uk/id/local-authority/30UE,Unapportionable Central OHeads,1009,HR & Org. Development,Service Fees,40056,Services,5027,Medical Assessments,03/12/2014,99463,194.40,Revenue,WWL NHS FT,66700
